Workbook

Sheet Chart
F1: Note: You must enable macros for this workbook to update correctly
B2: =Data!AP181 -> MIL | C2: =Data!AQ181 -> 0 | D2: =Data!AR181 -> 0.5740740741
B3: =Data!AP182 -> CHC | C3: =Data!AQ182 -> 10 | D3: =Data!AR182 -> 0.512345679
B4: =Data!AP183 -> STL | C4: =Data!AQ183 -> 10 | D4: =Data!AR183 -> 0.512345679
B5: =Data!AP184 -> CIN | C5: =Data!AQ184 -> 16 | D5: =Data!AR184 -> 0.475308642
B6: =Data!AP185 -> PIT | C6: =Data!AQ185 -> 17 | D6: =Data!AR185 -> 0.4691358025
F52: Y-Axis = First-Place Lead Size (Brewers) (# of games)

Sheet Data
A1: NLC24 | B1: CHC | C1: W | D1: L | F1: CIN | G1: W | H1: L | J1: MIL | K1: W | L1: L | N1: PIT | O1: W | P1: L | R1: STL | S1: W | T1: L | V1: 2023 | W1: W | X1: L | AA1: =B1 -> CHC | AB1: =F1 -> CIN | AC1: =J1 -> MIL | AD1: =N1 -> PIT | AE1: =R1 -> STL | AF1: 2023 | AH1: =AA1 -> CHC | AI1: =AB1 -> CIN | AJ1: =AC1 -> MIL | AK1: =AD1 -> PIT | AL1: =AE1 -> STL
A2: 2024-03-27 | C2: 0 | D2: 0 | G2: 0 | H2: 0 | K2: 0 | L2: 0 | O2: 0 | P2: 0 | S2: 0 | T2: 0 | W2: 0 | X2: 0 | AA2: 0 | AB2: 0 | AC2: 0 | AD2: 0 | AE2: 0 | AF2: 0 | AH2: 0 | AI2: 0 | AJ2: 0 | AK2: 0 | AL2: 0 | AT2: =IF(AJ2 = 0, MIN(AH2:AI2, AK2:AL2), 0-AJ2) -> 0
A3: 2024-03-28 | B3: -1 | C3: =C2+IF(B3>0,B3,0) -> 0 | D3: =D2-IF(B3<0,B3,0) -> 1 | F3: 1 | G3: =G2+IF(F3>0,F3,0) -> 1 | H3: =H2-IF(F3<0,F3,0) -> 0 | K3: =K2+IF(J3>0,J3,0) -> 0 | L3: =L2-IF(J3<0,J3,0) -> 0 | N3: 1 | O3: =O2+IF(N3>0,N3,0) -> 1 | P3: =P2-IF(N3<0,N3,0) -> 0 | R3: -1 | S3: =S2+IF(R3>0,R3,0) -> 0 | T3: =T2-IF(R3<0,R3,0) -> 1 | V3: -1 | W3: =W2+IF(V3>0,V3,0) -> 0 | X3: =X2-IF(V3<0,V3,0) -> 1 | AA3: =C3-D3 -> -1 | AB3: =G3-H3 -> 1 | AC3: =K3-L3 -> 0 | AD3: =O3-P3 -> 1 | AE3: =S3-T3 -> -1 | AF3: =W3-X3 -> -1 | AH3: =(MAX($AA3:$AE3)-AA3)/2 -> 1 | AI3: =(MAX($AA3:$AE3)-AB3)/2 -> 0 | AJ3: =(MAX($AA3:$AE3)-AC3)/2 -> 0.5 | AK3: =(MAX($AA3:$AE3)-AD3)/2 -> 0 | AL3: =(MAX($AA3:$AE3)-AE3)/2 -> 1 | AP3: =AP181 -> MIL | AQ3: 0 | AR3: 0.5740740741 | AT3: -0.5
A4: 2024-03-29 | C4: =C3+IF(B4>0,B4,0) -> 0 | D4: =D3-IF(B4<0,B4,0) -> 1 | G4: 1 | H4: 0 | J4: 1 | K4: 1 | L4: 0 | N4: 1 | O4: 2 | P4: 0 | R4: -1 | S4: 0 | T4: 2 | W4: =W3+IF(V4>0,V4,0) -> 0 | X4: =X3-IF(V4<0,V4,0) -> 1 | AA4: -1 | AB4: 1 | AC4: 1 | AD4: 2 | AE4: -2 | AF4: -1 | AH4: =(MAX($AA4:$AE4)-AA4)/2 -> 1.5 | AI4: =(MAX($AA4:$AE4)-AB4)/2 -> 0.5 | AJ4: =(MAX($AA4:$AE4)-AC4)/2 -> 0.5 | AK4: =(MAX($AA4:$AE4)-AD4)/2 -> 0 | AL4: =(MAX($AA4:$AE4)-AE4)/2 -> 2 | AP4: CHC | AQ4: 10 | AR4: 0.512345679 | AT4: -0.5
A5: 2024-03-30 | B5: -1 | C5: 0 | D5: 2 | F5: -1 | G5: 1 | H5: 1 | J5: 1 | K5: 2 | L5: 0 | N5: 1 | O5: 3 | P5: 0 | R5: 1 | S5: 1 | T5: 2 | V5: 1 | W5: 1 | X5: 1 | AA5: -2 | AB5: 0 | AC5: 2 | AD5: 3 | AE5: -1 | AF5: 0 | AH5: 2.5 | AI5: 1.5 | AJ5: 0.5 | AK5: 0 | AL5: 2 | AP5: STL | AQ5: 10 | AR5: 0.512345679 | AT5: -0.5
A6: 2024-03-31 | B6: 1 | C6: 1 | D6: 2 | F6: 1 | G6: 2 | H6: 1 | J6: 1 | K6: 3 | L6: 0 | N6: 1 | O6: 4 | P6: 0 | R6: -1 | S6: 1 | T6: 3 | V6: 1 | W6: 2 | X6: 1 | AA6: -1 | AB6: 1 | AC6: 3 | AD6: 4 | AE6: -2 | AF6: 1 | AH6: 2.5 | AI6: 1.5 | AJ6: 0.5 | AK6: 0 | AL6: 3 | AP6: CIN | AQ6: 16 | AR6: 0.475308642 | AT6: -0.5
A7: 2024-04-01 | B7: 1 | C7: 2 | D7: 2 | F7: 1 | G7: 3 | H7: 1 | K7: 3 | L7: 0 | N7: 1 | O7: 5 | P7: 0 | R7: 1 | S7: 2 | T7: 3 | V7: 1 | W7: 3 | X7: 1 | AA7: 0 | AB7: 2 | AC7: 3 | AD7: 5 | AE7: -1 | AF7: 2 | AH7: 2.5 | AI7: 1.5 | AJ7: 1 | AK7: 0 | AL7: 3 | AP7: PIT | AQ7: 17 | AR7: 0.4691358025 | AT7: -1
A8: 2024-04-02 | B8: 1 | C8: 3 | D8: 2 | F8: -1 | G8: 3 | H8: 2 | J8: 1 | K8: 4 | L8: 0 | O8: 5 | P8: 0 | R8: 1 | S8: 3 | T8: 3 | V8: 1 | W8: 4 | X8: 1 | AA8: 1 | AB8: 1 | AC8: 4 | AD8: 5 | AE8: 0 | AF8: 3 | AH8: 2 | AI8: 2 | AJ8: 0.5 | AK8: 0 | AL8: 2.5 | AT8: -0.5
A9: 2024-04-03 | B9: 1 | C9: =C8+IF(B9>0,B9,0) -> 4 | D9: =D8-IF(B9<0,B9,0) -> 2 | F9: 1 | G9: =G8+IF(F9>0,F9,0) -> 4 | H9: =H8-IF(F9<0,F9,0) -> 2 | J9: -1 | K9: 4 | L9: 1 | N9: -1 | O9: 5 | P9: 1 | R9: -1 | S9: 3 | T9: 4 | V9: 1 | W9: 5 | X9: 1 | AA9: 2 | AB9: 2 | AC9: 3 | AD9: 4 | AE9: -1 | AF9: 4 | AH9: 1 | AI9: 1 | AJ9: 0.5 | AK9: 0 | AL9: 2.5 | AT9: -0.5
A10: 2024-04-04 | C10: 4 | D10: 2 | G10: 4 | H10: 2 | K10: 4 | L10: 1 | N10: 1 | O10: 6 | P10: 1 | R10: 1 | S10: 4 | T10: 4 | W10: 5 | X10: 1 | AA10: 2 | AB10: 2 | AC10: 3 | AD10: 5 | AE10: 0 | AF10: 4 | AH10: 1.5 | AI10: 1.5 | AJ10: 1 | AK10: 0 | AL10: 2.5 | AT10: -1
A11: 2024-04-05 | B11: 1 | C11: 5 | D11: 2 | F11: -1 | G11: 4 | H11: 3 | J11: 1 | K11: 5 | L11: 1 | N11: -1 | O11: 6 | P11: 2 | S11: 4 | T11: 4 | V11: 1 | W11: 6 | X11: 1 | AA11: 3 | AB11: 1 | AC11: 4 | AD11: 4 | AE11: 0 | AF11: 5 | AH11: 0.5 | AI11: 1.5 | AJ11: 0 | AK11: 0 | AL11: 2 | AT11: 0
A12: 2024-04-06 | B12: -1 | C12: 5 | D12: 3 | F12: 1 | G12: 5 | H12: 3 | J12: -1 | K12: 5 | L12: 2 | N12: 1 | O12: 7 | P12: 2 | R12: 1 | S12: 5 | T12: 4 | V12: -1 | W12: 6 | X12: 2 | AA12: 2 | AB12: 2 | AC12: 3 | AD12: 5 | AE12: 1 | AF12: 4 | AH12: 1.5 | AI12: 1.5 | AJ12: 1 | AK12: 0 | AL12: 2 | AT12: -1
A13: 2024-04-07 | B13: 1 | C13: 6 | D13: 3 | F13: -1 | G13: 5 | H13: 4 | J13: 1 | K13: 6 | L13: 2 | N13: 1 | O13: 8 | P13: 2 | R13: -1 | S13: 5 | T13: 5 | V13: 1 | W13: 7 | X13: 2 | AA13: 3 | AB13: 1 | AC13: 4 | AD13: 6 | AE13: 0 | AF13: 5 | AH13: 1.5 | AI13: 2.5 | AJ13: 1 | AK13: 0 | AL13: 3 | AT13: -1
A14: 2024-04-08 | B14: -1 | C14: 6 | D14: 4 | F14: 1 | G14: 6 | H14: 4 | J14: -1 | K14: 6 | L14: 3 | N14: 1 | O14: 9 | P14: 2 | R14: -1 | S14: 5 | T14: 6 | V14: -1 | W14: 7 | X14: 3 | AA14: 2 | AB14: 2 | AC14: 3 | AD14: 7 | AE14: -1 | AF14: 4 | AH14: 2.5 | AI14: 2.5 | AJ14: 2 | AK14: 0 | AL14: 4 | AT14: -2
A15: 2024-04-09 | B15: 1 | C15: 7 | D15: 4 | F15: -1 | G15: 6 | H15: 5 | J15: 1 | K15: 7 | L15: 3 | N15: -1 | O15: 9 | P15: 3 | R15: 1 | S15: 6 | T15: 6 | V15: 1 | W15: 8 | X15: 3 | AA15: 3 | AB15: 1 | AC15: 4 | AD15: 6 | AE15: 0 | AF15: 5 | AH15: 1.5 | AI15: 2.5 | AJ15: 1 | AK15: 0 | AL15: 3 | AT15: -1
A16: 2024-04-10 | B16: -1 | C16: 7 | D16: 5 | F16: -1 | G16: 6 | H16: 6 | J16: 1 | K16: 8 | L16: 3 | O16: 9 | P16: 3 | R16: -1 | S16: 6 | T16: 7 | V16: -1 | W16: 8 | X16: 4 | AA16: 2 | AB16: 0 | AC16: 5 | AD16: 6 | AE16: -1 | AF16: 4 | AH16: 2 | AI16: 3 | AJ16: 0.5 | AK16: 0 | AL16: 3.5 | AT16: -0.5
A17: 2024-04-11 | C17: 7 | D17: 5 | G17: 6 | H17: 6 | K17: 8 | L17: 3 | N17: -1 | O17: 9 | P17: 4 | S17: 6 | T17: 7 | V17: 1 | W17: 9 | X17: 4 | AA17: 2 | AB17: 0 | AC17: 5 | AD17: 5 | AE17: -1 | AF17: 5 | AH17: 1.5 | AI17: 2.5 | AJ17: 0 | AK17: 0 | AL17: 3 | AT17: 0
A18: 2024-04-12 | B18: -1 | C18: 7 | D18: 6 | F18: 1 | G18: 7 | H18: 6 | J18: 1 | K18: 9 | L18: 3 | N18: 1 | O18: 10 | P18: 4 | R18: 1 | S18: 7 | T18: 7 | V18: 1 | W18: 10 | X18: 4 | AA18: 1 | AB18: 1 | AC18: 6 | AD18: 6 | AE18: 0 | AF18: 6 | AH18: 2.5 | AI18: 2.5 | AJ18: 0 | AK18: 0 | AL18: 3 | AT18: 0
A19: 2024-04-13 | B19: 1 | C19: 8 | D19: 6 | F19: 1 | G19: 8 | H19: 6 | J19: 1 | K19: 10 | L19: 3 | N19: -1 | O19: 10 | P19: 5 | R19: -1 | S19: 7 | T19: 8 | V19: -1 | W19: 10 | X19: 5 | AA19: 2 | AB19: 2 | AC19: 7 | AD19: 5 | AE19: -1 | AF19: 5 | AH19: 2.5 | AI19: 2.5 | AJ19: 0 | AK19: 1 | AL19: 4 | AT19: 1
A20: 2024-04-14 | B20: 1 | C20: 9 | D20: 6 | F20: 1 | G20: 9 | H20: 6 | J20: -1 | K20: 10 | L20: 4 | N20: 1 | O20: 11 | P20: 5 | R20: -1 | S20: 7 | T20: 9 | V20: 1 | W20: 11 | X20: 5 | AA20: 3 | AB20: 3 | AC20: 6 | AD20: 6 | AE20: -2 | AF20: 6 | AH20: 1.5 | AI20: 1.5 | AJ20: 0 | AK20: 0 | AL20: 4 | AT20: 0
A21: 2024-04-15 | B21: 1 | C21: 10 | D21: 6 | F21: -1 | G21: 9 | H21: 7 | J21: -1 | K21: 10 | L21: 5 | N21: -1 | O21: 11 | P21: 6 | R21: 1 | S21: 8 | T21: 9 | V21: 1 | W21: 12 | X21: 5 | AA21: 4 | AB21: 2 | AC21: 5 | AD21: 5 | AE21: -1 | AF21: 7 | AH21: 0.5 | AI21: 1.5 | AJ21: 0 | AK21: 0 | AL21: 3 | AT21: 0
A22: 2024-04-16 | B22: -1 | C22: 10 | D22: 7 | F22: -1 | G22: 9 | H22: 8 | J22: -1 | K22: 10 | L22: 6 | N22: -1 | O22: 11 | P22: 7 | R22: 1 | S22: 9 | T22: 9 | V22: 1 | W22: 13 | X22: 5 | AA22: 3 | AB22: 1 | AC22: 4 | AD22: 4 | AE22: 0 | AF22: 8 | AH22: 0.5 | AI22: 1.5 | AJ22: 0 | AK22: 0 | AL22: 2 | AT22: 0
A23: 2024-04-17 | B23: 1 | C23: 11 | D23: 7 | F23: -1 | G23: 9 | H23: 9 | J23: 1 | K23: 11 | L23: 6 | N23: -1 | O23: =O22+IF(N23>0,N23,0) -> 11 | P23: =P22-IF(N23<0,N23,0) -> 8 | R23: -1 | S23: =S22+IF(R23>0,R23,0) -> 9 | T23: =T22-IF(R23<0,R23,0) -> 10 | V23: 1 | W23: 14 | X23: 5 | AA23: 4 | AB23: 0 | AC23: 5 | AD23: 3 | AE23: -1 | AF23: 9 | AH23: 0.5 | AI23: 2.5 | AJ23: 0 | AK23: 1 | AL23: 3 | AT23: 0.5
A24: 2024-04-18 | C24: 11 | D24: 7 | G24: 9 | H24: 9 | K24: 11 | L24: 6 | O24: 11 | P24: 8 | S24: 9 | T24: 10 | W24: 14 | X24: 5 | AA24: 4 | AB24: 0 | AC24: 5 | AD24: 3 | AE24: -1 | AF24: 9 | AH24: 0.5 | AI24: 2.5 | AJ24: 0 | AK24: 1 | AL24: 3 | AT24: 0.5
A25: 2024-04-19 | B25: 1 | C25: 12 | D25: 7 | F25: 1 | G25: 10 | H25: 9 | J25: 1 | K25: 12 | L25: 6 | N25: -1 | O25: 11 | P25: 9 | R25: -1 | S25: 9 | T25: 11 | V25: -1 | W25: 14 | X25: 6 | AA25: 5 | AB25: 1 | AC25: 6 | AD25: 2 | AE25: -2 | AF25: 8 | AH25: 0.5 | AI25: 2.5 | AJ25: 0 | AK25: 2 | AL25: 4 | AT25: 0.5
A26: 2024-04-20 | B26: 0 | C26: 13 | D26: 8 | F26: 1 | G26: 11 | H26: 9 | J26: 1 | K26: 13 | L26: 6 | N26: -1 | O26: 11 | P26: 10 | R26: -1 | S26: 9 | T26: 12 | V26: 1 | W26: 15 | X26: 6 | AA26: 5 | AB26: 2 | AC26: 7 | AD26: 1 | AE26: -3 | AF26: 9 | AH26: 1 | AI26: 2.5 | AJ26: 0 | AK26: 3 | AL26: 5 | AT26: 1
A27: 2024-04-21 | B27: -1 | C27: 13 | D27: 9 | F27: 1 | G27: 12 | H27: 9 | J27: 1 | K27: 14 | L27: 6 | N27: -1 | O27: 11 | P27: 11 | R27: -1 | S27: 9 | T27: 13 | V27: -1 | W27: 15 | X27: 7 | AA27: 4 | AB27: 3 | AC27: 8 | AD27: 0 | AE27: -4 | AF27: 8 | AH27: 2 | AI27: 2.5 | AJ27: 0 | AK27: 4 | AL27: 6 | AT27: 2
A28: 2024-04-22 | C28: 13 | D28: 9 | F28: -1 | G28: 12 | H28: 10 | J28: -1 | K28: 14 | L28: 7 | N28: 1 | O28: 12 | P28: 11 | R28: 1 | S28: 10 | T28: 13 | V28: -1 | W28: 15 | X28: 8 | AA28: 4 | AB28: 2 | AC28: 7 | AD28: 1 | AE28: -3 | AF28: 7 | AH28: 1.5 | AI28: 2.5 | AJ28: 0 | AK28: 3 | AL28: 5 | AT28: 1.5
A29: 2024-04-23 | B29: 1 | C29: 14 | D29: 9 | F29: 1 | G29: 13 | H29: 10 | J29: -1 | K29: 14 | L29: 8 | N29: 1 | O29: 13 | P29: 11 | R29: -1 | S29: 10 | T29: 14 | V29: -1 | W29: 15 | X29: 9 | AA29: 5 | AB29: 3 | AC29: 6 | AD29: 2 | AE29: -4 | AF29: 6 | AH29: 0.5 | AI29: 1.5 | AJ29: 0 | AK29: 2 | AL29: 5 | AT29: 0.5
A30: 2024-04-24 | B30: 1 | C30: 15 | D30: 9 | F30: 1 | G30: 14 | H30: 10 | J30: 1 | K30: 15 | L30: 8 | N30: -1 | O30: =O29+IF(N30>0,N30,0) -> 13 | P30: =P29-IF(N30<0,N30,0) -> 12 | R30: 1 | S30: 11 | T30: 14 | V30: 1 | W30: 16 | X30: 9 | AA30: 6 | AB30: 4 | AC30: 7 | AD30: 1 | AE30: -3 | AF30: 7 | AH30: 0.5 | AI30: 1.5 | AJ30: 0 | AK30: 3 | AL30: 5 | AT30: 0.5
A31: 2024-04-25 | B31: 1 | C31: 16 | D31: 9 | F31: -1 | G31: 14 | H31: 11 | J31: 1 | K31: 16 | L31: 8 | N31: -1 | O31: 13 | P31: 13 | S31: 11 | T31: 14 | W31: 16 | X31: 9 | AA31: 7 | AB31: 3 | AC31: 8 | AD31: 0 | AE31: -3 | AF31: 7 | AH31: 0.5 | AI31: 2.5 | AJ31: 0 | AK31: 4 | AL31: 5.5 | AT31: 0.5
A32: 2024-04-26 | B32: 1 | C32: 17 | D32: 9 | F32: -1 | G32: 14 | H32: 12 | J32: 1 | K32: 17 | L32: 8 | N32: -1 | O32: 13 | P32: 14 | R32: 1 | S32: 12 | T32: 14 | V32: 1 | W32: 17 | X32: 9 | AA32: 8 | AB32: 2 | AC32: 9 | AD32: -1 | AE32: -2 | AF32: 8 | AH32: 0.5 | AI32: 3.5 | AJ32: 0 | AK32: 5 | AL32: 5.5 | AT32: 0.5
A33: 2024-04-27 | B33: -1 | C33: 17 | D33: 10 | F33: 1 | G33: 15 | H33: 12 | J33: -1 | K33: 17 | L33: 9 | N33: 1 | O33: 14 | P33: 14 | R33: 1 | S33: 13 | T33: 14 | V33: 1 | W33: 18 | X33: 9 | AA33: 7 | AB33: 3 | AC33: 8 | AD33: 0 | AE33: -1 | AF33: 9 | AH33: 0.5 | AI33: 2.5 | AJ33: 0 | AK33: 4 | AL33: 4.5 | AT33: 0.5
A34: 2024-04-28 | B34: -1 | C34: 17 | D34: 11 | F34: -1 | G34: 15 | H34: 13 | J34: -1 | K34: 17 | L34: 10 | N34: -1 | O34: =O33+IF(N34>0,N34,0) -> 14 | P34: =P33-IF(N34<0,N34,0) -> 15 | R34: -1 | S34: 13 | T34: 15 | V34: -1 | W34: 18 | X34: 10 | AA34: 6 | AB34: 2 | AC34: 7 | AD34: -1 | AE34: -2 | AF34: 8 | AH34: 0.5 | AI34: 2.5 | AJ34: 0 | AK34: 4 | AL34: 4.5 | AT34: =IF(AJ34 = 0, MIN(AH34:AI34, AK34:AL34), 0-AJ34) -> 0.5
A35: 2024-04-29 | B35: 1 | C35: 18 | D35: 11 | F35: 1 | G35: 16 | H35: 13 | J35: -1 | K35: 17 | L35: 11 | N35: -1 | O35: 14 | P35: 16 | S35: 13 | T35: 15 | W35: 18 | X35: 10 | AA35: =C35-D35 -> 7 | AB35: =G35-H35 -> 3 | AC35: =K35-L35 -> 6 | AD35: =O35-P35 -> -2 | AE35: =S35-T35 -> -2 | AF35: =W35-X35 -> 8 | AH35: 0 | AI35: 2 | AJ35: 0.5 | AK35: 4.5 | AL35: 4.5 | AT35: -0.5
A36: 2024-04-30 | B36: -1 | C36: 18 | D36: 12 | F36: -1 | G36: 16 | H36: 14 | J36: 1 | K36: 18 | L36: 11 | N36: -1 | O36: 14 | P36: 17 | R36: 0 | S36: 14 | T36: 16 | V36: -1 | W36: 18 | X36: 11 | AA36: 6 | AB36: 2 | AC36: 7 | AD36: -3 | AE36: -2 | AF36: 7 | AH36: 0.5 | AI36: 2.5 | AJ36: 0 | AK36: 5 | AL36: =(MAX($AA36:$AE36)-AE36)/2 -> 4.5 | AT36: 0.5
A37: 2024-05-01 | B37: 1 | C37: 19 | D37: 12 | F37: -1 | G37: 16 | H37: 15 | J37: 1 | K37: 19 | L37: 11 | N37: -1 | O37: 14 | P37: 18 | R37: -1 | S37: =S36+IF(R37>0,R37,0) -> 14 | T37: =T36-IF(R37<0,R37,0) -> 17 | V37: -1 | W37: 18 | X37: 12 | AA37: 7 | AB37: 1 | AC37: 8 | AD37: -4 | AE37: -3 | AF37: 6 | AH37: 0.5 | AI37: 3.5 | AJ37: 0 | AK37: 6 | AL37: 5.5 | AT37: 0.5
A38: 2024-05-02 | B38: -1 | C38: 19 | D38: 13 | G38: 16 | H38: 15 | K38: 19 | L38: 11 | O38: 14 | P38: 18 | S38: 14 | T38: 17 | V38: -1 | W38: 18 | X38: 13 | AA38: 6 | AB38: 1 | AC38: 8 | AD38: -4 | AE38: -3 | AF38: 5 | AH38: 1 | AI38: 3.5 | AJ38: 0 | AK38: 6 | AL38: 5.5 | AT38: 1
A39: 2024-05-03 | B39: -1 | C39: 19 | D39: 14 | F39: -1 | G39: 16 | H39: 16 | J39: 1 | K39: =K38+IF(J39>0,J39,0) -> 20 | L39: =L38-IF(J39<0,J39,0) -> 11 | N39: -1 | O39: 14 | P39: 19 | R39: 1 | S39: =S38+IF(R39>0,R39,0) -> 15 | T39: =T38-IF(R39<0,R39,0) -> 17 | V39: -1 | W39: 18 | X39: 14 | AA39: 5 | AB39: 0 | AC39: 9 | AD39: -5 | AE39: -2 | AF39: 4 | AH39: 2 | AI39: 4.5 | AJ39: 0 | AK39: 7 | AL39: 5.5 | AT39: 2
A40: 2024-05-04 | B40: 1 | C40: 20 | D40: 14 | F40: -1 | G40: 16 | H40: 17 | J40: -1 | K40: 20 | L40: 12 | N40: 1 | O40: 15 | P40: 19 | R40: -1 | S40: 15 | T40: 18 | V40: -1 | W40: 18 | X40: 15 | AA40: 6 | AB40: -1 | AC40: 8 | AD40: -4 | AE40: -3 | AF40: 3 | AH40: 1 | AI40: 4.5 | AJ40: 0 | AK40: 6 | AL40: 5.5 | AT40: 1
A41: 2024-05-05 | B41: 1 | C41: 21 | D41: 14 | F41: -1 | G41: 16 | H41: 18 | J41: -1 | K41: 20 | L41: 13 | N41: 1 | O41: 16 | P41: 19 | R41: -1 | S41: 15 | T41: 19 | V41: 1 | W41: 19 | X41: 15 | AA41: 7 | AB41: -2 | AC41: 7 | AD41: -3 | AE41: -4 | AF41: 4 | AH41: 0 | AI41: 4.5 | AJ41: 0 | AK41: 5 | AL41: 5.5 | AT41: 0
A42: 2024-05-06 | B42: -1 | C42: 21 | D42: 15 | G42: 16 | H42: 18 | J42: -1 | K42: 20 | L42: 14 | N42: 1 | O42: 17 | P42: 19 | R42: -1 | S42: 15 | T42: 20 | V42: 1 | W42: 20 | X42: 15 | AA42: 6 | AB42: -2 | AC42: 6 | AD42: -2 | AE42: -5 | AF42: 5 | AH42: 0 | AI42: 4 | AJ42: 0 | AK42: 4 | AL42: 5.5 | AT42: 0
A43: 2024-05-07 | B43: 1 | C43: 22 | D43: 15 | F43: -1 | G43: 16 | H43: 19 | J43: 1 | K43: 21 | L43: 14 | N43: -1 | O43: 17 | P43: 20 | R43: -1 | S43: 15 | T43: 21 | V43: -1 | W43: 20 | X43: 16 | AA43: 7 | AB43: -3 | AC43: 7 | AD43: -3 | AE43: -6 | AF43: 4 | AH43: 0 | AI43: 5 | AJ43: 0 | AK43: 5 | AL43: 6.5 | AT43: 0
A44: 2024-05-08 | B44: -1 | C44: 22 | D44: 16 | F44: -1 | G44: 16 | H44: 20 | J44: -1 | K44: 21 | L44: 15 | N44: -1 | O44: 17 | P44: 21 | S44: 15 | T44: 21 | V44: -1 | W44: 20 | X44: 17 | AA44: 6 | AB44: -4 | AC44: 6 | AD44: -4 | AE44: -6 | AF44: 3 | AH44: 0 | AI44: 5 | AJ44: 0 | AK44: 5 | AL44: 6 | AT44: 0
A45: 2024-05-09 | C45: 22 | D45: 16 | F45: -1 | G45: 16 | H45: 21 | J45: 1 | K45: =K44+IF(J45>0,J45,0) -> 22 | L45: =L44-IF(J45<0,J45,0) -> 15 | O45: 17 | P45: 21 | R45: -1 | S45: =S44+IF(R45>0,R45,0) -> 15 | T45: =T44-IF(R45<0,R45,0) -> 22 | W45: 20 | X45: 17 | AA45: 6 | AB45: -5 | AC45: 7 | AD45: -4 | AE45: -7 | AF45: 3 | AH45: 0.5 | AI45: 6 | AJ45: 0 | AK45: 5.5 | AL45: 7 | AT45: 0.5
A46: 2024-05-10 | B46: 1 | C46: 23 | D46: 16 | F46: 1 | G46: 17 | H46: 21 | J46: 1 | K46: 23 | L46: 15 | N46: -1 | O46: 17 | P46: 22 | R46: -1 | S46: 15 | T46: 23 | V46: 1 | W46: 21 | X46: 17 | AA46: 7 | AB46: -4 | AC46: 8 | AD46: -5 | AE46: -8 | AF46: 4 | AH46: 0.5 | AI46: 6 | AJ46: 0 | AK46: 6.5 | AL46: 8 | AT46: 0.5
A47: 2024-05-11 | B47: -1 | C47: 23 | D47: 17 | F47: -1 | G47: 17 | H47: 22 | J47: 1 | K47: 24 | L47: 15 | N47: 1 | O47: 18 | P47: 22 | R47: -1 | S47: 15 | T47: 24 | V47: 1 | W47: 22 | X47: 17 | AA47: 6 | AB47: -5 | AC47: 9 | AD47: -4 | AE47: -9 | AF47: 5 | AH47: 1.5 | AI47: 7 | AJ47: 0 | AK47: 6.5 | AL47: 9 | AT47: 1.5
A48: 2024-05-12 | B48: 1 | C48: 24 | D48: 17 | F48: -1 | G48: 17 | H48: 23 | J48: -1 | K48: 24 | L48: 16 | N48: -1 | O48: 18 | P48: 23 | R48: 1 | S48: 16 | T48: 24 | V48: 1 | W48: 23 | X48: 17 | AA48: 7 | AB48: -6 | AC48: 8 | AD48: -5 | AE48: -8 | AF48: 6 | AH48: 0.5 | AI48: 7 | AJ48: 0 | AK48: 6.5 | AL48: 8 | AT48: 0.5
A49: 2024-05-13 | B49: -1 | C49: 24 | D49: 18 | F49: -1 | G49: 17 | H49: 24 | J49: -1 | K49: 24 | L49: 17 | N49: 1 | O49: 19 | P49: 23 | R49: 1 | S49: 17 | T49: 24 | V49: -1 | W49: 23 | X49: 18 | AA49: 6 | AB49: -7 | AC49: 7 | AD49: -4 | AE49: -7 | AF49: 5 | AH49: 0.5 | AI49: 7 | AJ49: 0 | AK49: 5.5 | AL49: 7 | AT49: 0.5
A50: 2024-05-14 | B50: -1 | C50: 24 | D50: 19 | F50: 1 | G50: 18 | H50: 24 | J50: 1 | K50: 25 | L50: 17 | N50: -1 | O50: 19 | P50: 24 | R50: 1 | S50: 18 | T50: 24 | V50: 1 | W50: 24 | X50: 18 | AA50: 5 | AB50: -6 | AC50: 8 | AD50: -5 | AE50: -6 | AF50: 6 | AH50: 1.5 | AI50: 7 | AJ50: 0 | AK50: 6.5 | AL50: 7 | AT50: 1.5
A51: 2024-05-15 | B51: 1 | C51: 25 | D51: 19 | F51: -1 | G51: 18 | H51: 25 | J51: 1 | K51: 26 | L51: 17 | N51: -1 | O51: 19 | P51: 25 | R51: -1 | S51: 18 | T51: 25 | V51: -1 | W51: 24 | X51: 19 | AA51: 6 | AB51: -7 | AC51: 9 | AD51: -6 | AE51: -7 | AF51: 5 | AH51: 1.5 | AI51: 8 | AJ51: 0 | AK51: 7.5 | AL51: 8 | AT51: 1.5
A52: 2024-05-16 | B52: -1 | C52: 25 | D52: 20 | F52: 1 | G52: 19 | H52: 25 | K52: 26 | L52: 17 | N52: 1 | O52: 20 | P52: 25 | S52: 18 | T52: 25 | W52: 24 | X52: 19 | AA52: 5 | AB52: -6 | AC52: 9 | AD52: -5 | AE52: -7 | AF52: 5 | AH52: 2 | AI52: 7.5 | AJ52: 0 | AK52: 7 | AL52: 8 | AT52: 2
A53: 2024-05-17 | B53: -1 | C53: 25 | D53: 21 | F53: -1 | G53: 19 | H53: 26 | J53: -1 | K53: 26 | L53: 18 | N53: 1 | O53: 21 | P53: 25 | R53: 1 | S53: 19 | T53: 25 | V53: -1 | W53: 24 | X53: 20 | AA53: 4 | AB53: -7 | AC53: 8 | AD53: -4 | AE53: -6 | AF53: 4 | AH53: 2 | AI53: 7.5 | AJ53: 0 | AK53: 6 | AL53: 7 | AT53: 2
A54: 2024-05-18 | B54: 1 | C54: 26 | D54: 21 | F54: -1 | G54: 19 | H54: 27 | J54: 1 | K54: 27 | L54: 18 | N54: -1 | O54: 21 | P54: 26 | R54: 1 | S54: 20 | T54: 25 | V54: -1 | W54: 24 | X54: 21 | AA54: 5 | AB54: -8 | AC54: 9 | AD54: -5 | AE54: -5 | AF54: 3 | AH54: 2 | AI54: 8.5 | AJ54: 0 | AK54: 7 | AL54: 7 | AT54: 2
A55: 2024-05-19 | B55: -1 | C55: 26 | D55: 22 | F55: -1 | G55: 19 | H55: 28 | J55: -1 | K55: 27 | L55: 19 | N55: 1 | O55: 22 | P55: 26 | R55: -1 | S55: 20 | T55: 26 | V55: 1 | W55: 25 | X55: 21 | AA55: 4 | AB55: -9 | AC55: 8 | AD55: -4 | AE55: -6 | AF55: 4 | AH55: 2 | AI55: 8.5 | AJ55: 0 | AK55: 6 | AL55: 7 | AT55: 2
A56: 2024-05-20 | C56: 26 | D56: 22 | G56: 19 | H56: 28 | J56: -1 | K56: 27 | L56: 20 | O56: 22 | P56: 26 | R56: 1 | S56: 21 | T56: 26 | V56: -1 | W56: 25 | X56: 22 | AA56: 4 | AB56: -9 | AC56: 7 | AD56: -4 | AE56: -5 | AF56: 3 | AH56: 1.5 | AI56: 8 | AJ56: 0 | AK56: 5.5 | AL56: 6 | AT56: 1.5
A57: 2024-05-21 | B57: 1 | C57: 27 | D57: 22 | F57: 1 | G57: 20 | H57: 28 | J57: 1 | K57: 28 | L57: 20 | N57: 1 | O57: 23 | P57: 26 | R57: 1 | S57: 22 | T57: 26 | V57: 1 | W57: 26 | X57: 22 | AA57: 5 | AB57: -8 | AC57: 8 | AD57: -3 | AE57: -4 | AF57: 4 | AH57: 1.5 | AI57: 8 | AJ57: 0 | AK57: 5.5 | AL57: 6 | AT57: 1.5
A58: 2024-05-22 | B58: -1 | C58: 27 | D58: 23 | F58: -1 | G58: 20 | H58: 29 | J58: -1 | K58: 28 | L58: 21 | N58: -1 | O58: 23 | P58: 27 | R58: 1 | S58: 23 | T58: 26 | V58: 1 | W58: 27 | X58: 22 | AA58: 4 | AB58: -9 | AC58: 7 | AD58: -4 | AE58: -3 | AF58: 5 | AH58: 1.5 | AI58: 8 | AJ58: 0 | AK58: 5.5 | AL58: 5 | AT58: 1.5
A59: 2024-05-23 | B59: -1 | C59: 27 | D59: 24 | F59: -1 | G59: 20 | H59: 30 | K59: 28 | L59: 21 | N59: -1 | O59: 23 | P59: 28 | S59: 23 | T59: 26 | V59: -1 | W59: 27 | X59: 23 | AA59: 3 | AB59: -10 | AC59: 7 | AD59: -5 | AE59: -3 | AF59: 4 | AH59: 2 | AI59: 8.5 | AJ59: 0 | AK59: 6 | AL59: 5 | AT59: 2
A60: 2024-05-24 | C60: 27 | D60: 24 | F60: 1 | G60: 21 | H60: 30 | J60: 1 | K60: 29 | L60: 21 | N60: 1 | O60: 24 | P60: 28 | S60: 23 | T60: 26 | V60: -1 | W60: 27 | X60: 24 | AA60: 3 | AB60: -9 | AC60: 8 | AD60: -4 | AE60: -3 | AF60: 3 | AH60: 2.5 | AI60: 8.5 | AJ60: 0 | AK60: 6 | AL60: 5.5 | AT60: 2.5
A61: 2024-05-25 | B61: -1 | C61: 27 | D61: 25 | F61: 1 | G61: 22 | H61: 30 | J61: 1 | K61: 30 | L61: 21 | N61: 1 | O61: 25 | P61: 28 | R61: 1 | S61: 24 | T61: 26 | V61: -1 | W61: 27 | X61: 25 | AA61: 2 | AB61: -8 | AC61: 9 | AD61: -3 | AE61: -2 | AF61: 2 | AH61: 3.5 | AI61: 8.5 | AJ61: 0 | AK61: 6 | AL61: 5.5 | AT61: 3.5
A62: 2024-05-26 | B62: -1 | C62: 27 | D62: 26 | F62: 1 | G62: 23 | H62: 30 | J62: -1 | K62: 30 | L62: 22 | N62: -1 | O62: 25 | P62: 29 | R62: 1 | S62: 25 | T62: 26 | V62: 1 | W62: 28 | X62: 25 | AA62: 1 | AB62: -7 | AC62: 8 | AD62: -4 | AE62: -1 | AF62: 3 | AH62: 3.5 | AI62: 7.5 | AJ62: 0 | AK62: 6 | AL62: 4.5 | AT62: 3.5
A63: 2024-05-27 | B63: -1 | C63: 27 | D63: 27 | F63: 1 | G63: 24 | H63: 30 | J63: 1 | K63: 31 | L63: 22 | O63: 25 | P63: 29 | R63: -1 | S63: 25 | T63: 27 | W63: 28 | X63: 25 | AA63: 0 | AB63: -6 | AC63: 9 | AD63: -4 | AE63: -2 | AF63: 3 | AH63: 4.5 | AI63: 7.5 | AJ63: 0 | AK63: 6.5 | AL63: 5.5 | AT63: 4.5
A64: 2024-05-28 | B64: 1 | C64: 28 | D64: 27 | F64: -1 | G64: 24 | H64: 31 | J64: -1 | K64: 31 | L64: 23 | O64: 25 | P64: 29 | R64: 1 | S64: 26 | T64: 27 | V64: -1 | W64: 28 | X64: 26 | AA64: 1 | AB64: -7 | AC64: 8 | AD64: -4 | AE64: -1 | AF64: 2 | AH64: 3.5 | AI64: 7.5 | AJ64: 0 | AK64: 6 | AL64: 4.5 | AT64: 3.5
A65: 2024-05-29 | B65: -1 | C65: 28 | D65: 28 | F65: -1 | G65: 24 | H65: 32 | J65: 1 | K65: =K64+IF(J65>0,J65,0) -> 32 | L65: =L64-IF(J65<0,J65,0) -> 23 | N65: 0 | O65: 26 | P65: 30 | R65: 1 | S65: 27 | T65: 27 | V65: 1 | W65: 29 | X65: 26 | AA65: 0 | AB65: -8 | AC65: 9 | AD65: -4 | AE65: 0 | AF65: 3 | AH65: 4.5 | AI65: 8.5 | AJ65: 0 | AK65: 6.5 | AL65: 4.5 | AT65: 4.5
A66: 2024-05-30 | B66: -1 | C66: 28 | D66: 29 | G66: 24 | H66: 32 | J66: 1 | K66: 33 | L66: 23 | O66: 26 | P66: 30 | S66: 27 | T66: 27 | V66: -1 | W66: 29 | X66: 27 | AA66: -1 | AB66: -8 | AC66: 10 | AD66: -4 | AE66: 0 | AF66: 2 | AH66: 5.5 | AI66: 9 | AJ66: 0 | AK66: 7 | AL66: 5 | AT66: =IF(AJ66 = 0, MIN(AH66:AI66, AK66:AL66), 0-AJ66) -> 5
A67: 2024-05-31 | B67: -1 | C67: 28 | D67: 30 | F67: 1 | G67: 25 | H67: 32 | J67: 1 | K67: 34 | L67: 23 | N67: -1 | O67: 26 | P67: 31 | R67: -1 | S67: 27 | T67: 28 | V67: 1 | W67: 30 | X67: 27 | AA67: =C67-D67 -> -2 | AB67: =G67-H67 -> -7 | AC67: =K67-L67 -> 11 | AD67: =O67-P67 -> -5 | AE67: =S67-T67 -> -1 | AF67: =W67-X67 -> 3 | AH67: 6.5 | AI67: 9 | AJ67: 0 | AK67: 8 | AL67: 6 | AT67: 6
A68: 2024-06-01 | B68: 1 | C68: 29 | D68: 30 | F68: -1 | G68: 25 | H68: 33 | J68: 1 | K68: 35 | L68: 23 | N68: 1 | O68: 27 | P68: 31 | R68: -1 | S68: 27 | T68: 29 | V68: 1 | W68: =W67+IF(V68>0,V68,0) -> 31 | X68: =X67-IF(V68<0,V68,0) -> 27 | AA68: -1 | AB68: -8 | AC68: 12 | AD68: -4 | AE68: -2 | AF68: 4 | AH68: =(MAX($AA68:$AE68)-AA68)/2 -> 6.5 | AI68: =(MAX($AA68:$AE68)-AB68)/2 -> 10 | AJ68: =(MAX($AA68:$AE68)-AC68)/2 -> 0 | AK68: =(MAX($AA68:$AE68)-AD68)/2 -> 8 | AL68: =(MAX($AA68:$AE68)-AE68)/2 -> 7 | AT68: 6.5
A69: 2024-06-02 | B69: -1 | C69: 29 | D69: 31 | F69: 1 | G69: 26 | H69: 33 | J69: 1 | K69: 36 | L69: 23 | N69: -1 | O69: 27 | P69: 32 | R69: 1 | S69: 28 | T69: 29 | V69: 1 | W69: 32 | X69: 27 | AA69: -2 | AB69: -7 | AC69: 13 | AD69: -5 | AE69: -1 | AF69: 5 | AH69: 7.5 | AI69: 10 | AJ69: 0 | AK69: 9 | AL69: 7 | AT69: 7
A70: 2024-06-03 | C70: 29 | D70: 31 | F70: 1 | G70: 27 | H70: 33 | J70: -1 | K70: 36 | L70: 24 | O70: 27 | P70: 32 | R70: -1 | S70: 28 | T70: 30 | V70: -1 | W70: 32 | X70: 28 | AA70: -2 | AB70: -6 | AC70: 12 | AD70: -5 | AE70: -2 | AF70: 4 | AH70: 7 | AI70: 9 | AJ70: 0 | AK70: 8.5 | AL70: 7 | AT70: 7
A71: 2024-06-04 | B71: 1 | C71: 30 | D71: 31 | F71: 1 | G71: 28 | H71: 33 | J71: -1 | K71: 36 | L71: 25 | N71: 1 | O71: 28 | P71: 32 | R71: -1 | S71: 28 | T71: 31 | V71: 1 | W71: 33 | X71: 28 | AA71: -1 | AB71: -5 | AC71: 11 | AD71: -4 | AE71: -3 | AF71: 5 | AH71: 6 | AI71: 8 | AJ71: 0 | AK71: 7.5 | AL71: 7 | AT71: 6
A72: 2024-06-05 | B72: 1 | C72: 31 | D72: 31 | F72: 1 | G72: 29 | H72: 33 | J72: -1 | K72: 36 | L72: 26 | N72: 1 | O72: 29 | P72: 32 | R72: 1 | S72: 29 | T72: 31 | V72: 1 | W72: 34 | X72: 28 | AA72: 0 | AB72: -4 | AC72: 10 | AD72: -3 | AE72: -2 | AF72: 6 | AH72: 5 | AI72: 7 | AJ72: 0 | AK72: 6.5 | AL72: 6 | AT72: 5
A73: 2024-06-06 | B73: -1 | C73: =C72+IF(B73>0,B73,0) -> 31 | D73: =D72-IF(B73<0,B73,0) -> 32 | F73: 1 | G73: =G72+IF(F73>0,F73,0) -> 30 | H73: =H72-IF(F73<0,F73,0) -> 33 | K73: 36 | L73: 26 | N73: -1 | O73: 29 | P73: 33 | R73: -1 | S73: 29 | T73: 32 | V73: -1 | W73: 34 | X73: 29 | AA73: -1 | AB73: -3 | AC73: 10 | AD73: -4 | AE73: -3 | AF73: 5 | AH73: 5.5 | AI73: 6.5 | AJ73: 0 | AK73: 7 | AL73: 6.5 | AT73: 5.5
A74: 2024-06-07 | B74: -1 | C74: 31 | D74: 33 | F74: 1 | G74: 31 | H74: 33 | J74: 1 | K74: =K73+IF(J74>0,J74,0) -> 37 | L74: =L73-IF(J74<0,J74,0) -> 26 | N74: 1 | O74: 30 | P74: 33 | R74: 1 | S74: 30 | T74: 32 | V74: -1 | W74: 34 | X74: 30 | AA74: -2 | AB74: -2 | AC74: 11 | AD74: -3 | AE74: -2 | AF74: 4 | AH74: 6.5 | AI74: 6.5 | AJ74: 0 | AK74: 7 | AL74: 6.5 | AT74: 6.5
A75: 2024-06-08 | B75: -1 | C75: 31 | D75: 34 | F75: 1 | G75: 32 | H75: 33 | J75: 1 | K75: =K74+IF(J75>0,J75,0) -> 38 | L75: =L74-IF(J75<0,J75,0) -> 26 | N75: 1 | O75: 31 | P75: 33 | R75: -1 | S75: 30 | T75: 33 | V75: -1 | W75: 34 | X75: 31 | AA75: -3 | AB75: -1 | AC75: 12 | AD75: -2 | AE75: -3 | AF75: 3 | AH75: 7.5 | AI75: 6.5 | AJ75: 0 | AK75: 7 | AL75: 7.5 | AT75: 6.5
A76: 2024-06-09 | B76: 1 | C76: 32 | D76: 34 | F76: -1 | G76: 32 | H76: 34 | J76: -1 | K76: 38 | L76: 27 | N76: -1 | O76: 31 | P76: 34 | R76: 1 | S76: 31 | T76: 33 | V76: -1 | W76: 34 | X76: 32 | AA76: -2 | AB76: -2 | AC76: 11 | AD76: -3 | AE76: -2 | AF76: 2 | AH76: 6.5 | AI76: 6.5 | AJ76: 0 | AK76: 7 | AL76: 6.5 | AT76: 6.5
A77: 2024-06-10 | C77: 32 | D77: 34 | G77: 32 | H77: 34 | J77: 1 | K77: 39 | L77: 27 | O77: 31 | P77: 34 | S77: 31 | T77: 33 | W77: 34 | X77: 32 | AA77: -2 | AB77: -2 | AC77: 12 | AD77: -3 | AE77: -2 | AF77: 2 | AH77: 7 | AI77: 7 | AJ77: 0 | AK77: 7.5 | AL77: 7 | AT77: 7
A78: 2024-06-11 | B78: -1 | C78: 32 | D78: 35 | F78: -1 | G78: 32 | H78: 35 | J78: -1 | K78: 39 | L78: 28 | N78: 1 | O78: 32 | P78: 34 | R78: -1 | S78: 31 | T78: 34 | V78: -1 | W78: 34 | X78: 33 | AA78: -3 | AB78: -3 | AC78: 11 | AD78: -2 | AE78: -3 | AF78: 1 | AH78: 7 | AI78: 7 | AJ78: 0 | AK78: 6.5 | AL78: 7 | AT78: 6.5
A79: 2024-06-12 | B79: 1 | C79: 33 | D79: 35 | F79: 1 | G79: 33 | H79: 35 | J79: 1 | K79: 40 | L79: 28 | N79: -1 | O79: 32 | P79: 35 | R79: 1 | S79: 32 | T79: 34 | V79: -1 | W79: 34 | X79: 34 | AA79: -2 | AB79: -2 | AC79: 12 | AD79: -3 | AE79: -2 | AF79: 0 | AH79: 7 | AI79: 7 | AJ79: 0 | AK79: 7.5 | AL79: 7 | AT79: 7
A80: 2024-06-13 | B80: -1 | C80: 33 | D80: 36 | G80: 33 | H80: 35 | K80: 40 | L80: 28 | N80: -1 | O80: 32 | P80: 36 | R80: 1 | S80: 33 | T80: 34 | W80: 34 | X80: 34 | AA80: -3 | AB80: -2 | AC80: 12 | AD80: -4 | AE80: -1 | AF80: 0 | AH80: 7.5 | AI80: 7 | AJ80: 0 | AK80: 8 | AL80: 6.5 | AT80: 6.5
A81: 2024-06-14 | B81: -1 | C81: 33 | D81: 37 | F81: 1 | G81: 34 | H81: 35 | J81: -1 | K81: 40 | L81: 29 | N81: 1 | O81: 33 | P81: 36 | R81: 1 | S81: 34 | T81: 34 | V81: 1 | W81: 35 | X81: 34 | AA81: -4 | AB81: -1 | AC81: 11 | AD81: -3 | AE81: 0 | AF81: 1 | AH81: 7.5 | AI81: 6 | AJ81: 0 | AK81: 7 | AL81: 5.5 | AT81: 5.5
A82: 2024-06-15 | B82: 1 | C82: 34 | D82: 37 | F82: -1 | G82: 34 | H82: 36 | J82: 1 | K82: 41 | L82: 29 | N82: -1 | O82: 33 | P82: 37 | R82: -1 | S82: 34 | T82: 35 | V82: 1 | W82: 36 | X82: 34 | AA82: -3 | AB82: -2 | AC82: 12 | AD82: -4 | AE82: -1 | AF82: 2 | AH82: 7.5 | AI82: 7 | AJ82: 0 | AK82: 8 | AL82: 6.5 | AT82: 6.5
A83: 2024-06-16 | B83: -1 | C83: 34 | D83: 38 | F83: -1 | G83: 34 | H83: 37 | J83: 1 | K83: 42 | L83: 29 | N83: 1 | O83: 34 | P83: 37 | R83: 1 | S83: 35 | T83: 35 | V83: 1 | W83: 37 | X83: 34 | AA83: -4 | AB83: -3 | AC83: 13 | AD83: -3 | AE83: 0 | AF83: 3 | AH83: 8.5 | AI83: 8 | AJ83: 0 | AK83: 8 | AL83: 6.5 | AT83: 6.5
A84: 2024-06-17 | B84: -1 | C84: 34 | D84: 39 | F84: -1 | G84: 34 | H84: 38 | J84: -1 | K84: 42 | L84: 30 | N84: 1 | O84: 35 | P84: 37 | R84: 1 | S84: 36 | T84: 35 | V84: -1 | W84: 37 | X84: 35 | AA84: -5 | AB84: -4 | AC84: 12 | AD84: -2 | AE84: 1 | AF84: 2 | AH84: 8.5 | AI84: 8 | AJ84: 0 | AK84: 7 | AL84: 5.5 | AT84: 5.5
A85: 2024-06-18 | B85: 1 | C85: 35 | D85: 39 | F85: 1 | G85: 35 | H85: 38 | J85: 1 | K85: 43 | L85: 30 | N85: -1 | O85: 35 | P85: 38 | R85: -1 | S85: 36 | T85: 36 | V85: 1 | W85: 38 | X85: 35 | AA85: -4 | AB85: -3 | AC85: 13 | AD85: -3 | AE85: 0 | AF85: 3 | AH85: 8.5 | AI85: 8 | AJ85: 0 | AK85: 8 | AL85: 6.5 | AT85: 6.5
A86: 2024-06-19 | B86: 1 | C86: 36 | D86: 39 | F86: -1 | G86: 35 | H86: 39 | J86: 1 | K86: 44 | L86: 30 | N86: 1 | O86: 36 | P86: 38 | R86: -1 | S86: 36 | T86: 37 | V86: -1 | W86: 38 | X86: 36 | AA86: -3 | AB86: -4 | AC86: 14 | AD86: -2 | AE86: -1 | AF86: 2 | AH86: 8.5 | AI86: 9 | AJ86: 0 | AK86: 8 | AL86: 7.5 | AT86: 7.5
A87: 2024-06-20 | C87: 36 | D87: 39 | G87: 35 | H87: 39 | J87: -1 | K87: 44 | L87: 31 | O87: 36 | P87: 38 | R87: 1 | S87: 37 | T87: 37 | W87: 38 | X87: 36 | AA87: -3 | AB87: -4 | AC87: 13 | AD87: -2 | AE87: 0 | AF87: 2 | AH87: 8 | AI87: 8.5 | AJ87: 0 | AK87: 7.5 | AL87: 6.5 | AT87: 6.5
A88: 2024-06-21 | B88: -1 | C88: 36 | D88: 40 | F88: 1 | G88: 36 | H88: 39 | J88: -1 | K88: 44 | L88: 32 | N88: -1 | O88: 36 | P88: 39 | S88: 37 | T88: 37 | V88: 1 | W88: 39 | X88: 36 | AA88: -4 | AB88: -3 | AC88: 12 | AD88: -3 | AE88: 0 | AF88: 3 | AH88: 8 | AI88: 7.5 | AJ88: 0 | AK88: 7.5 | AL88: 6 | AT88: 6
A89: 2024-06-22 | B89: 1 | C89: 37 | D89: 40 | F89: -1 | G89: 36 | H89: 40 | J89: -1 | K89: 44 | L89: 33 | N89: 1 | O89: 37 | P89: 39 | R89: 1 | S89: 38 | T89: 37 | V89: -1 | W89: 39 | X89: 37 | AA89: -3 | AB89: -4 | AC89: 11 | AD89: -2 | AE89: 1 | AF89: 2 | AH89: 7 | AI89: 7.5 | AJ89: 0 | AK89: 6.5 | AL89: 5 | AT89: 5
A90: 2024-06-23 | B90: -1 | C90: 37 | D90: 41 | F90: -1 | G90: 36 | H90: 41 | J90: 1 | K90: 45 | L90: 33 | N90: -1 | O90: 37 | P90: 40 | R90: 1 | S90: 39 | T90: 37 | V90: 1 | W90: 40 | X90: 37 | AA90: -4 | AB90: -5 | AC90: 12 | AD90: -3 | AE90: 2 | AF90: 3 | AH90: 8 | AI90: 8.5 | AJ90: 0 | AK90: 7.5 | AL90: 5 | AT90: 5
A91: 2024-06-24 | B91: -1 | C91: 37 | D91: 42 | F91: 1 | G91: 37 | H91: 41 | J91: 1 | K91: 46 | L91: 33 | N91: -1 | O91: 37 | P91: 41 | R91: 1 | S91: 40 | T91: 37 | V91: 1 | W91: 41 | X91: 37 | AA91: -5 | AB91: -4 | AC91: 13 | AD91: -4 | AE91: 3 | AF91: 4 | AH91: 9 | AI91: 8.5 | AJ91: 0 | AK91: 8.5 | AL91: 5 | AT91: 5
A92: 2024-06-25 | B92: -1 | C92: 37 | D92: 43 | F92: -1 | G92: 37 | H92: 42 | J92: 1 | K92: 47 | L92: 33 | N92: 1 | O92: 38 | P92: 41 | S92: 40 | T92: 37 | V92: -1 | W92: 41 | X92: 38 | AA92: -6 | AB92: -5 | AC92: 14 | AD92: -3 | AE92: 3 | AF92: 3 | AH92: 10 | AI92: 9.5 | AJ92: 0 | AK92: 8.5 | AL92: 5.5 | AT92: 5.5
A93: 2024-06-26 | B93: -1 | C93: 37 | D93: 44 | F93: -1 | G93: 37 | H93: 43 | J93: 1 | K93: 48 | L93: 33 | N93: 1 | O93: 39 | P93: 41 | R93: 0 | S93: 41 | T93: 38 | V93: 1 | W93: 42 | X93: 38 | AA93: -7 | AB93: -6 | AC93: 15 | AD93: -2 | AE93: 3 | AF93: 4 | AH93: 11 | AI93: 10.5 | AJ93: 0 | AK93: 8.5 | AL93: 6 | AT93: 6
A94: 2024-06-27 | B94: 1 | C94: 38 | D94: 44 | F94: 1 | G94: 38 | H94: 43 | K94: 48 | L94: 33 | O94: 39 | P94: 41 | R94: -1 | S94: 41 | T94: 39 | V94: 1 | W94: 43 | X94: 38 | AA94: -6 | AB94: -5 | AC94: 15 | AD94: -2 | AE94: 2 | AF94: 5 | AH94: 10.5 | AI94: 10 | AJ94: 0 | AK94: 8.5 | AL94: 6.5 | AT94: 6.5
A95: 2024-06-28 | B95: -1 | C95: 38 | D95: 45 | F95: -1 | G95: 38 | H95: 44 | J95: 1 | K95: 49 | L95: 33 | N95: -1 | O95: 39 | P95: 42 | R95: 1 | S95: 42 | T95: 39 | V95: -1 | W95: 43 | X95: 39 | AA95: -7 | AB95: -6 | AC95: 16 | AD95: -3 | AE95: 3 | AF95: 4 | AH95: 11.5 | AI95: 11 | AJ95: 0 | AK95: 9.5 | AL95: 6.5 | AT95: 6.5
A96: 2024-06-29 | B96: 1 | C96: 39 | D96: 45 | F96: 1 | G96: 39 | H96: 44 | J96: -1 | K96: 49 | L96: 34 | N96: -1 | O96: 39 | P96: 43 | R96: -1 | S96: =S95+IF(R96>0,R96,0) -> 42 | T96: =T95-IF(R96<0,R96,0) -> 40 | V96: 1 | W96: 44 | X96: 39 | AA96: -6 | AB96: -5 | AC96: 15 | AD96: -4 | AE96: 2 | AF96: 5 | AH96: 10.5 | AI96: 10 | AJ96: 0 | AK96: 9.5 | AL96: 6.5 | AT96: 6.5
A97: 2024-06-30 | B97: -1 | C97: 39 | D97: 46 | F97: -1 | G97: 39 | H97: 45 | J97: 1 | K97: 50 | L97: 34 | N97: 1 | O97: 40 | P97: 43 | R97: 1 | S97: 43 | T97: 40 | V97: 1 | W97: 45 | X97: 39 | AA97: -7 | AB97: -6 | AC97: 16 | AD97: -3 | AE97: 3 | AF97: 6 | AH97: 11.5 | AI97: 11 | AJ97: 0 | AK97: 9.5 | AL97: 6.5 | AT97: 6.5
A98: 2024-07-01 | C98: 39 | D98: 46 | G98: 39 | H98: 45 | J98: -1 | K98: 50 | L98: 35 | O98: =O97+IF(N98>0,N98,0) -> 40 | P98: =P97-IF(N98<0,N98,0) -> 43 | S98: 43 | T98: 40 | V98: 1 | W98: 46 | X98: 39 | AA98: -7 | AB98: -6 | AC98: 15 | AD98: -3 | AE98: 3 | AF98: 7 | AH98: 11 | AI98: 10.5 | AJ98: 0 | AK98: 9 | AL98: 6 | AT98: =IF(AJ98 = 0, MIN(AH98:AI98, AK98:AL98), 0-AJ98) -> 6
A99: 2024-07-02 | B99: -1 | C99: 39 | D99: 47 | F99: 1 | G99: 40 | H99: 45 | J99: 1 | K99: 51 | L99: 35 | N99: -1 | O99: 40 | P99: 44 | R99: 1 | S99: 44 | T99: 40 | V99: -1 | W99: 46 | X99: 40 | AA99: =C99-D99 -> -8 | AB99: =G99-H99 -> -5 | AC99: =K99-L99 -> 16 | AD99: =O99-P99 -> -4 | AE99: =S99-T99 -> 4 | AF99: =W99-X99 -> 6 | AH99: 12 | AI99: 10.5 | AJ99: 0 | AK99: 10 | AL99: 6 | AT99: 6
A100: 2024-07-03 | B100: -1 | C100: 39 | D100: 48 | F100: 1 | G100: 41 | H100: 45 | J100: 1 | K100: =K99+IF(J100>0,J100,0) -> 52 | L100: =L99-IF(J100<0,J100,0) -> 35 | N100: 1 | O100: 41 | P100: 44 | R100: -1 | S100: 44 | T100: 41 | V100: -1 | W100: 46 | X100: 41 | AA100: -9 | AB100: -4 | AC100: 17 | AD100: -3 | AE100: 3 | AF100: 5 | AH100: 13 | AI100: 10.5 | AJ100: 0 | AK100: 10 | AL100: =(MAX($AA100:$AE100)-AE100)/2 -> 7 | AT100: 7
A101: 2024-07-04 | B101: 1 | C101: 40 | D101: 48 | F101: 1 | G101: 42 | H101: 45 | J101: -1 | K101: 52 | L101: 36 | N101: -1 | O101: 41 | P101: 45 | R101: 1 | S101: 45 | T101: 41 | V101: 1 | W101: 47 | X101: 41 | AA101: -8 | AB101: -3 | AC101: 16 | AD101: -4 | AE101: 4 | AF101: 6 | AH101: 12 | AI101: 9.5 | AJ101: 0 | AK101: 10 | AL101: 6 | AT101: 6
A102: 2024-07-05 | B102: 1 | C102: 41 | D102: 48 | F102: -1 | G102: 42 | H102: 46 | J102: -1 | K102: 52 | L102: 37 | N102: 1 | O102: 42 | P102: 45 | R102: 1 | S102: 46 | T102: 41 | V102: 1 | W102: 48 | X102: 41 | AA102: -7 | AB102: -4 | AC102: 15 | AD102: -3 | AE102: 5 | AF102: 7 | AH102: 11 | AI102: 9.5 | AJ102: 0 | AK102: 9 | AL102: 5 | AT102: 5
A103: 2024-07-06 | B103: -1 | C103: 41 | D103: 49 | F103: -1 | G103: 42 | H103: 47 | J103: -1 | K103: =K102+IF(J103>0,J103,0) -> 52 | L103: =L102-IF(J103<0,J103,0) -> 38 | N103: -1 | O103: 42 | P103: 46 | R103: -1 | S103: 46 | T103: 42 | V103: -1 | W103: 48 | X103: 42 | AA103: -8 | AB103: -5 | AC103: 14 | AD103: -4 | AE103: 4 | AF103: 6 | AH103: 11 | AI103: 9.5 | AJ103: 0 | AK103: 9 | AL103: 5 | AT103: 5
A104: 2024-07-07 | B104: 1 | C104: 42 | D104: 49 | F104: -1 | G104: 42 | H104: 48 | J104: 1 | K104: 53 | L104: 38 | N104: -1 | O104: 42 | P104: 47 | R104: 1 | S104: 47 | T104: 42 | V104: 1 | W104: 49 | X104: 42 | AA104: -7 | AB104: -6 | AC104: 15 | AD104: -5 | AE104: 5 | AF104: 7 | AH104: 11 | AI104: 10.5 | AJ104: 0 | AK104: 10 | AL104: 5 | AT104: 5
A105: 2024-07-08 | C105: 42 | D105: 49 | F105: 1 | G105: 43 | H105: 48 | K105: 53 | L105: 38 | N105: 1 | O105: 43 | P105: 47 | R105: 1 | S105: 48 | T105: 42 | W105: 49 | X105: 42 | AA105: -7 | AB105: -5 | AC105: 15 | AD105: -4 | AE105: 6 | AF105: 7 | AH105: 11 | AI105: 10 | AJ105: 0 | AK105: 9.5 | AL105: 4.5 | AT105: 4.5
A106: 2024-07-09 | B106: 1 | C106: 43 | D106: 49 | F106: 1 | G106: 44 | H106: 48 | J106: -1 | K106: 53 | L106: 39 | N106: 1 | O106: 44 | P106: 47 | S106: 48 | T106: 42 | W106: 49 | X106: 42 | AA106: -6 | AB106: -4 | AC106: 14 | AD106: -3 | AE106: 6 | AF106: 7 | AH106: 10 | AI106: 9 | AJ106: 0 | AK106: 8.5 | AL106: 4 | AT106: 4
A107: 2024-07-10 | B107: 1 | C107: 44 | D107: 49 | F107: -1 | G107: 44 | H107: 49 | J107: 1 | K107: 54 | L107: 39 | N107: -1 | O107: 44 | P107: 48 | R107: -2 | S107: 48 | T107: 44 | W107: 49 | X107: 42 | AA107: -5 | AB107: -5 | AC107: 15 | AD107: -4 | AE107: 4 | AF107: 7 | AH107: 10 | AI107: 10 | AJ107: 0 | AK107: 9.5 | AL107: 5.5 | AT107: 5.5
A108: 2024-07-11 | B108: 1 | C108: 45 | D108: 49 | F108: 1 | G108: 45 | H108: 49 | J108: -1 | K108: 54 | L108: 40 | N108: 1 | O108: 45 | P108: 48 | S108: 48 | T108: 44 | W108: 49 | X108: 42 | AA108: -4 | AB108: -4 | AC108: 14 | AD108: -3 | AE108: 4 | AF108: 7 | AH108: 9 | AI108: 9 | AJ108: 0 | AK108: 8.5 | AL108: 5 | AT108: 5
A109: 2024-07-12 | B109: 1 | C109: 46 | D109: 49 | F109: 1 | G109: 46 | H109: 49 | J109: -1 | K109: 54 | L109: 41 | N109: 1 | O109: 46 | P109: 48 | R109: -1 | S109: =S108+IF(R109>0,R109,0) -> 48 | T109: =T108-IF(R109<0,R109,0) -> 45 | V109: 1 | W109: 50 | X109: 42 | AA109: -3 | AB109: -3 | AC109: 13 | AD109: -2 | AE109: 3 | AF109: 8 | AH109: 8 | AI109: 8 | AJ109: 0 | AK109: 7.5 | AL109: 5 | AT109: 5
A110: 2024-07-13 | B110: -2 | C110: 46 | D110: 51 | F110: 1 | G110: 47 | H110: 49 | J110: -1 | K110: 54 | L110: 42 | N110: 1 | O110: 47 | P110: 48 | R110: 2 | S110: 50 | T110: 45 | V110: 1 | W110: 51 | X110: 42 | AA110: -5 | AB110: -2 | AC110: 12 | AD110: -1 | AE110: 5 | AF110: 9 | AH110: 8.5 | AI110: 7 | AJ110: 0 | AK110: 6.5 | AL110: 3.5 | AT110: 3.5
A111: 2024-07-14 | B111: 1 | C111: 47 | D111: 51 | F111: -1 | G111: 47 | H111: 50 | J111: 1 | K111: 55 | L111: 42 | N111: 1 | O111: 48 | P111: 48 | R111: -1 | S111: 50 | T111: 46 | V111: 1 | W111: 52 | X111: 42 | AA111: -4 | AB111: -3 | AC111: 13 | AD111: 0 | AE111: 4 | AF111: 10 | AH111: 8.5 | AI111: 8 | AJ111: 0 | AK111: 6.5 | AL111: 4.5 | AT111: 4.5
A112: 2024-07-15 | C112: 47 | D112: 51 | G112: 47 | H112: 50 | K112: 55 | L112: 42 | O112: 48 | P112: 48 | S112: 50 | T112: 46 | W112: 52 | X112: 42 | AA112: -4 | AB112: -3 | AC112: 13 | AD112: 0 | AE112: 4 | AF112: 10 | AH112: 8.5 | AI112: 8 | AJ112: 0 | AK112: 6.5 | AL112: 4.5 | AT112: 4.5
A113: 2024-07-16 | C113: 47 | D113: 51 | G113: 47 | H113: 50 | K113: 55 | L113: 42 | O113: 48 | P113: 48 | S113: 50 | T113: 46 | V113: -1 | W113: 52 | X113: 43 | AA113: -4 | AB113: -3 | AC113: 13 | AD113: 0 | AE113: 4 | AF113: 9 | AH113: 8.5 | AI113: 8 | AJ113: 0 | AK113: 6.5 | AL113: 4.5 | AT113: 4.5
A114: 2024-07-17 | C114: 47 | D114: 51 | G114: 47 | H114: 50 | K114: 55 | L114: 42 | O114: 48 | P114: 48 | S114: 50 | T114: 46 | V114: 1 | W114: 53 | X114: 43 | AA114: -4 | AB114: -3 | AC114: 13 | AD114: 0 | AE114: 4 | AF114: 10 | AH114: 8.5 | AI114: 8 | AJ114: 0 | AK114: 6.5 | AL114: 4.5 | AT114: 4.5
A115: 2024-07-18 | C115: 47 | D115: 51 | G115: 47 | H115: 50 | K115: 55 | L115: 42 | O115: 48 | P115: 48 | S115: 50 | T115: 46 | V115: 1 | W115: 54 | X115: 43 | AA115: -4 | AB115: -3 | AC115: 13 | AD115: 0 | AE115: 4 | AF115: 11 | AH115: 8.5 | AI115: 8 | AJ115: 0 | AK115: 6.5 | AL115: 4.5 | AT115: 4.5
A116: 2024-07-19 | B116: -1 | C116: 47 | D116: 52 | F116: -1 | G116: 47 | H116: 51 | K116: 55 | L116: 42 | N116: 1 | O116: 49 | P116: 48 | S116: 50 | T116: 46 | V116: -1 | W116: 54 | X116: 44 | AA116: -5 | AB116: -4 | AC116: 13 | AD116: 1 | AE116: 4 | AF116: 10 | AH116: 9 | AI116: 8.5 | AJ116: 0 | AK116: 6 | AL116: 4.5 | AT116: 4.5
A117: 2024-07-20 | B117: -1 | C117: 47 | D117: 53 | F117: -1 | G117: 47 | H117: 52 | J117: 1 | K117: 56 | L117: 42 | N117: 1 | O117: 50 | P117: 48 | R117: 0 | S117: 51 | T117: 47 | V117: 1 | W117: 55 | X117: 44 | AA117: -6 | AB117: -5 | AC117: 14 | AD117: 2 | AE117: 4 | AF117: 11 | AH117: 10 | AI117: 9.5 | AJ117: 0 | AK117: 6 | AL117: 5 | AT117: 5
A118: 2024-07-21 | B118: 1 | C118: 48 | D118: 53 | F118: -1 | G118: 47 | H118: 53 | J118: 1 | K118: 57 | L118: 42 | N118: -1 | O118: 50 | P118: 49 | R118: 1 | S118: 52 | T118: 47 | V118: -1 | W118: 55 | X118: 45 | AA118: -5 | AB118: -6 | AC118: 15 | AD118: 1 | AE118: 5 | AF118: 10 | AH118: 10 | AI118: 10.5 | AJ118: 0 | AK118: 7 | AL118: 5 | AT118: 5
A119: 2024-07-22 | B119: 1 | C119: 49 | D119: 53 | F119: 1 | G119: 48 | H119: 53 | J119: -1 | K119: 57 | L119: 43 | N119: 1 | O119: 51 | P119: 49 | R119: -1 | S119: 52 | T119: 48 | V119: 1 | W119: 56 | X119: 45 | AA119: -4 | AB119: -5 | AC119: 14 | AD119: 2 | AE119: 4 | AF119: 11 | AH119: 9 | AI119: 9.5 | AJ119: 0 | AK119: 6 | AL119: 5 | AT119: 5
A120: 2024-07-23 | B120: -1 | C120: 49 | D120: 54 | G120: 48 | H120: 53 | J120: 1 | K120: 58 | L120: 43 | N120: -1 | O120: 51 | P120: 50 | R120: 1 | S120: 53 | T120: 48 | V120: -1 | W120: 56 | X120: 46 | AA120: -5 | AB120: -5 | AC120: 15 | AD120: 1 | AE120: 5 | AF120: 10 | AH120: 10 | AI120: 10 | AJ120: 0 | AK120: 7 | AL120: 5 | AT120: 5
A121: 2024-07-24 | B121: -1 | C121: 49 | D121: 55 | F121: 1 | G121: 49 | H121: 53 | J121: 1 | K121: 59 | L121: 43 | N121: 1 | O121: 52 | P121: 50 | R121: -1 | S121: 53 | T121: 49 | V121: 1 | W121: 57 | X121: 46 | AA121: -6 | AB121: -4 | AC121: 16 | AD121: 2 | AE121: 4 | AF121: 11 | AH121: 11 | AI121: 10 | AJ121: 0 | AK121: 7 | AL121: 6 | AT121: 6
A122: 2024-07-25 | C122: 49 | D122: 55 | G122: 49 | H122: 53 | K122: 59 | L122: 43 | O122: 52 | P122: 50 | S122: 53 | T122: 49 | W122: 57 | X122: 46 | AA122: -6 | AB122: -4 | AC122: 16 | AD122: 2 | AE122: 4 | AF122: 11 | AH122: 11 | AI122: 10 | AJ122: 0 | AK122: 7 | AL122: 6 | AT122: 6
A123: 2024-07-26 | B123: -1 | C123: 49 | D123: 56 | F123: 1 | G123: 50 | H123: 53 | J123: -1 | K123: 59 | L123: 44 | N123: -1 | O123: 52 | P123: 51 | R123: -1 | S123: 53 | T123: 50 | V123: -1 | W123: 57 | X123: 47 | AA123: -7 | AB123: -3 | AC123: 15 | AD123: 1 | AE123: 3 | AF123: 10 | AH123: 11 | AI123: 9 | AJ123: 0 | AK123: 7 | AL123: 6 | AT123: 6
A124: 2024-07-27 | B124: 1 | C124: 50 | D124: 56 | F124: -1 | G124: 50 | H124: 54 | J124: -1 | K124: 59 | L124: 45 | N124: -1 | O124: 52 | P124: 52 | R124: -1 | S124: 53 | T124: 51 | V124: -1 | W124: 57 | X124: 48 | AA124: -6 | AB124: -4 | AC124: 14 | AD124: 0 | AE124: 2 | AF124: 9 | AH124: 10 | AI124: 9 | AJ124: 0 | AK124: 7 | AL124: 6 | AT124: 6
A125: 2024-07-28 | B125: 1 | C125: 51 | D125: 56 | F125: -1 | G125: 50 | H125: 55 | J125: 1 | K125: 60 | L125: 45 | N125: 1 | O125: 53 | P125: 52 | R125: 1 | S125: 54 | T125: 51 | V125: -1 | W125: 57 | X125: 49 | AA125: -5 | AB125: -5 | AC125: 15 | AD125: 1 | AE125: 3 | AF125: 8 | AH125: 10 | AI125: 10 | AJ125: 0 | AK125: 7 | AL125: 6 | AT125: 6
A126: 2024-07-29 | B126: -1 | C126: 51 | D126: 57 | F126: 1 | G126: 51 | H126: 55 | J126: 1 | K126: 61 | L126: 45 | N126: 1 | O126: 54 | P126: 52 | R126: -1 | S126: 54 | T126: 52 | V126: -1 | W126: 57 | X126: 50 | AA126: -6 | AB126: -4 | AC126: 16 | AD126: 2 | AE126: 2 | AF126: 7 | AH126: 11 | AI126: 10 | AJ126: 0 | AK126: 7 | AL126: 7 | AT126: 7
A127: 2024-07-30 | B127: -1 | C127: 51 | D127: 58 | F127: 1 | G127: 52 | H127: 55 | J127: -1 | K127: 61 | L127: 46 | N127: 1 | O127: 55 | P127: 52 | R127: 1 | S127: 55 | T127: 52 | V127: 1 | W127: 58 | X127: 50 | AA127: -7 | AB127: -3 | AC127: 15 | AD127: 3 | AE127: 3 | AF127: 8 | AH127: 11 | AI127: 9 | AJ127: 0 | AK127: 6 | AL127: 6 | AT127: 6
A128: 2024-07-31 | B128: 1 | C128: 52 | D128: 58 | F128: -1 | G128: 52 | H128: 56 | J128: -1 | K128: 61 | L128: 47 | N128: -1 | O128: 55 | P128: 53 | R128: 1 | S128: 56 | T128: 52 | V128: -1 | W128: 58 | X128: 51 | AA128: -6 | AB128: -4 | AC128: 14 | AD128: 2 | AE128: 4 | AF128: 7 | AH128: 10 | AI128: 9 | AJ128: 0 | AK128: 6 | AL128: 5 | AT128: 5
A129: 2024-08-01 | B129: 1 | C129: 53 | D129: 58 | G129: 52 | H129: 56 | K129: 61 | L129: 47 | O129: 55 | P129: 53 | R129: -1 | S129: 56 | T129: 53 | V129: 1 | W129: 59 | X129: 51 | AA129: -5 | AB129: -4 | AC129: 14 | AD129: 2 | AE129: 3 | AF129: 8 | AH129: 9.5 | AI129: 9 | AJ129: 0 | AK129: 6 | AL129: 5.5 | AT129: 5.5
A130: 2024-08-02 | B130: 1 | C130: 54 | D130: 58 | F130: -1 | G130: 52 | H130: 57 | J130: 1 | K130: 62 | L130: 47 | N130: -1 | O130: 55 | P130: 54 | R130: -1 | S130: 56 | T130: 54 | V130: -1 | W130: 59 | X130: 52 | AA130: -4 | AB130: -5 | AC130: 15 | AD130: 1 | AE130: 2 | AF130: 7 | AH130: 9.5 | AI130: 10 | AJ130: 0 | AK130: 7 | AL130: 6.5 | AT130: =IF(AJ130 = 0, MIN(AH130:AI130, AK130:AL130), 0-AJ130) -> 6.5
A131: 2024-08-03 | B131: -1 | C131: 54 | D131: 59 | F131: 1 | G131: 53 | H131: 57 | J131: -1 | K131: 62 | L131: 48 | N131: 1 | O131: 56 | P131: 54 | R131: 1 | S131: 57 | T131: 54 | V131: 1 | W131: 60 | X131: 52 | AA131: =C131-D131 -> -5 | AB131: =G131-H131 -> -4 | AC131: =K131-L131 -> 14 | AD131: =O131-P131 -> 2 | AE131: =S131-T131 -> 3 | AF131: =W131-X131 -> 8 | AH131: 9.5 | AI131: 9 | AJ131: 0 | AK131: 6 | AL131: 5.5 | AT131: 5.5
A132: 2024-08-04 | B132: 1 | C132: 55 | D132: 59 | F132: -1 | G132: 53 | H132: 58 | J132: -1 | K132: 62 | L132: 49 | N132: -1 | O132: 56 | P132: 55 | R132: -1 | S132: 57 | T132: 55 | V132: -1 | W132: =W131+IF(V132>0,V132,0) -> 60 | X132: =X131-IF(V132<0,V132,0) -> 53 | AA132: -4 | AB132: -5 | AC132: 13 | AD132: 1 | AE132: 2 | AF132: 7 | AH132: =(MAX($AA132:$AE132)-AA132)/2 -> 8.5 | AI132: =(MAX($AA132:$AE132)-AB132)/2 -> 9 | AJ132: =(MAX($AA132:$AE132)-AC132)/2 -> 0 | AK132: =(MAX($AA132:$AE132)-AD132)/2 -> 6 | AL132: =(MAX($AA132:$AE132)-AE132)/2 -> 5.5 | AT132: 5.5
A133: 2024-08-05 | B133: -1 | C133: 55 | D133: 60 | F133: 1 | G133: 54 | H133: 58 | K133: 62 | L133: 49 | O133: 56 | P133: 55 | R133: -1 | S133: 57 | T133: 56 | V133: 1 | W133: 61 | X133: 53 | AA133: -5 | AB133: -4 | AC133: 13 | AD133: 1 | AE133: 1 | AF133: 8 | AH133: 9 | AI133: 8.5 | AJ133: 0 | AK133: 6 | AL133: 6 | AT133: 6
A134: 2024-08-06 | B134: 1 | C134: 56 | D134: 60 | F134: 1 | G134: 55 | H134: 58 | J134: 1 | K134: 63 | L134: 49 | N134: -1 | O134: 56 | P134: 56 | R134: 1 | S134: 58 | T134: 56 | V134: -1 | W134: 61 | X134: 54 | AA134: -4 | AB134: -3 | AC134: 14 | AD134: 0 | AE134: 2 | AF134: 7 | AH134: 9 | AI134: 8.5 | AJ134: 0 | AK134: 7 | AL134: 6 | AT134: 6
A135: 2024-08-07 | B135: 1 | C135: 57 | D135: 60 | F135: -1 | G135: 55 | H135: 59 | J135: 1 | K135: =K134+IF(J135>0,J135,0) -> 64 | L135: =L134-IF(J135<0,J135,0) -> 49 | N135: -1 | O135: 56 | P135: 57 | R135: 1 | S135: 59 | T135: 56 | V135: 1 | W135: 62 | X135: 54 | AA135: -3 | AB135: -4 | AC135: 15 | AD135: -1 | AE135: 3 | AF135: 8 | AH135: 9 | AI135: 9.5 | AJ135: 0 | AK135: 8 | AL135: 6 | AT135: 6
A136: 2024-08-08 | C136: 57 | D136: 60 | F136: 1 | G136: 56 | H136: 59 | J136: 1 | K136: 65 | L136: 49 | N136: -1 | O136: 56 | P136: 58 | R136: -1 | S136: 59 | T136: 57 | W136: 62 | X136: 54 | AA136: -3 | AB136: -3 | AC136: 16 | AD136: -2 | AE136: 2 | AF136: 8 | AH136: 9.5 | AI136: 9.5 | AJ136: 0 | AK136: 9 | AL136: 7 | AT136: 7
A137: 2024-08-09 | B137: 1 | C137: =C136+IF(B137>0,B137,0) -> 58 | D137: =D136-IF(B137<0,B137,0) -> 60 | F137: -1 | G137: =G136+IF(F137>0,F137,0) -> 56 | H137: =H136-IF(F137<0,F137,0) -> 60 | J137: 1 | K137: 66 | L137: 49 | N137: -1 | O137: 56 | P137: 59 | R137: 1 | S137: 60 | T137: 57 | V137: 1 | W137: 63 | X137: 54 | AA137: -2 | AB137: -4 | AC137: 17 | AD137: -3 | AE137: 3 | AF137: 9 | AH137: 9.5 | AI137: 10.5 | AJ137: 0 | AK137: 10 | AL137: 7 | AT137: 7
A138: 2024-08-10 | B138: 1 | C138: 59 | D138: 60 | F138: -1 | G138: 56 | H138: 61 | J138: 1 | K138: =K137+IF(J138>0,J138,0) -> 67 | L138: =L137-IF(J138<0,J138,0) -> 49 | N138: -1 | O138: 56 | P138: 60 | R138: -1 | S138: 60 | T138: 58 | V138: 1 | W138: 64 | X138: 54 | AA138: -1 | AB138: -5 | AC138: 18 | AD138: -4 | AE138: 2 | AF138: 10 | AH138: 9.5 | AI138: 11.5 | AJ138: 0 | AK138: 11 | AL138: 8 | AT138: 8
A139: 2024-08-11 | C139: 59 | D139: 60 | F139: 1 | G139: =G138+IF(F139>0,F139,0) -> 57 | H139: =H138-IF(F139<0,F139,0) -> 61 | J139: -1 | K139: 67 | L139: 50 | N139: -1 | O139: =O138+IF(N139>0,N139,0) -> 56 | P139: =P138-IF(N139<0,N139,0) -> 61 | S139: 60 | T139: 58 | V139: 1 | W139: 65 | X139: 54 | AA139: -1 | AB139: -4 | AC139: 17 | AD139: -5 | AE139: 2 | AF139: 11 | AH139: 9 | AI139: 10.5 | AJ139: 0 | AK139: 11 | AL139: 7.5 | AT139: 7.5
A140: 2024-08-12 | B140: -1 | C140: 59 | D140: 61 | F140: 1 | G140: 58 | H140: 61 | J140: -1 | K140: 67 | L140: 51 | N140: -1 | O140: 56 | P140: 62 | R140: -1 | S140: 60 | T140: 59 | W140: 65 | X140: 54 | AA140: -2 | AB140: -3 | AC140: 16 | AD140: -6 | AE140: 1 | AF140: 11 | AH140: 9 | AI140: 9.5 | AJ140: 0 | AK140: 11 | AL140: 7.5 | AT140: 7.5
A141: 2024-08-13 | B141: -1 | C141: 59 | D141: 62 | F141: 1 | G141: 59 | H141: 61 | J141: -1 | K141: 67 | L141: 52 | N141: -1 | O141: 56 | P141: 63 | R141: -1 | S141: 60 | T141: 60 | V141: -1 | W141: 65 | X141: 55 | AA141: -3 | AB141: -2 | AC141: 15 | AD141: -7 | AE141: 0 | AF141: 10 | AH141: 9 | AI141: 8.5 | AJ141: 0 | AK141: 11 | AL141: 7.5 | AT141: 7.5
A142: 2024-08-14 | B142: -1 | C142: 59 | D142: 63 | F142: 1 | G142: 60 | H142: 61 | J142: 1 | K142: 68 | L142: 52 | N142: -1 | O142: 56 | P142: 64 | R142: -1 | S142: 60 | T142: 61 | V142: -1 | W142: 65 | X142: 56 | AA142: -4 | AB142: -1 | AC142: 16 | AD142: -8 | AE142: -1 | AF142: 9 | AH142: 10 | AI142: 8.5 | AJ142: 0 | AK142: 12 | AL142: 8.5 | AT142: 8.5
A143: 2024-08-15 | C143: 59 | D143: 63 | G143: 60 | H143: 61 | J143: 1 | K143: 69 | L143: 52 | O143: 56 | P143: 64 | S143: 60 | T143: 61 | V143: -1 | W143: 65 | X143: 57 | AA143: -4 | AB143: -1 | AC143: 17 | AD143: -8 | AE143: -1 | AF143: 8 | AH143: 10.5 | AI143: 9 | AJ143: 0 | AK143: 12.5 | AL143: 9 | AT143: 9
A144: 2024-08-16 | B144: 1 | C144: 60 | D144: 63 | F144: -1 | G144: 60 | H144: 62 | J144: 1 | K144: 70 | L144: 52 | N144: 1 | O144: 57 | P144: 64 | R144: -1 | S144: 60 | T144: 62 | V144: 1 | W144: 66 | X144: 57 | AA144: -3 | AB144: -2 | AC144: 18 | AD144: -7 | AE144: -2 | AF144: 9 | AH144: 10.5 | AI144: 10 | AJ144: 0 | AK144: 12.5 | AL144: 10 | AT144: 10
A145: 2024-08-17 | B145: 1 | C145: 61 | D145: 63 | F145: -1 | G145: 60 | H145: 63 | J145: 1 | K145: 71 | L145: 52 | N145: 1 | O145: 58 | P145: 64 | R145: 1 | S145: 61 | T145: 62 | V145: 1 | W145: 67 | X145: 57 | AA145: -2 | AB145: -3 | AC145: 19 | AD145: -6 | AE145: -1 | AF145: 10 | AH145: 10.5 | AI145: 11 | AJ145: 0 | AK145: 12.5 | AL145: 10 | AT145: 10
A146: 2024-08-18 | B146: -1 | C146: 61 | D146: 64 | F146: -1 | G146: 60 | H146: 64 | J146: 1 | K146: 72 | L146: 52 | N146: -1 | O146: 58 | P146: 65 | R146: -1 | S146: 61 | T146: 63 | V146: 1 | W146: 68 | X146: 57 | AA146: -3 | AB146: -4 | AC146: 20 | AD146: -7 | AE146: -2 | AF146: 11 | AH146: 11.5 | AI146: 12 | AJ146: 0 | AK146: 13.5 | AL146: 11 | AT146: 11
A147: 2024-08-19 | C147: 61 | D147: 64 | F147: 1 | G147: 61 | H147: 64 | K147: 72 | L147: 52 | N147: -1 | O147: 58 | P147: 66 | S147: 61 | T147: 63 | W147: 68 | X147: 57 | AA147: -3 | AB147: -3 | AC147: 20 | AD147: -8 | AE147: -2 | AF147: 11 | AH147: 11.5 | AI147: 11.5 | AJ147: 0 | AK147: 14 | AL147: 11 | AT147: 11
A148: 2024-08-20 | B148: 1 | C148: 62 | D148: 64 | F148: -1 | G148: 61 | H148: 65 | J148: 1 | K148: 73 | L148: 52 | N148: 1 | O148: 59 | P148: 66 | R148: -1 | S148: 61 | T148: 64 | V148: 1 | W148: 69 | X148: 57 | AA148: -2 | AB148: -4 | AC148: 21 | AD148: -7 | AE148: -3 | AF148: 12 | AH148: 11.5 | AI148: 12.5 | AJ148: 0 | AK148: 14 | AL148: 12 | AT148: 11.5
A149: 2024-08-21 | B149: -1 | C149: 62 | D149: 65 | F149: 1 | G149: 62 | H149: 65 | J149: -1 | K149: 73 | L149: 53 | N149: -1 | O149: 59 | P149: 67 | R149: 1 | S149: 62 | T149: 64 | V149: 1 | W149: 70 | X149: 57 | AA149: -3 | AB149: -3 | AC149: 20 | AD149: -8 | AE149: -2 | AF149: 13 | AH149: 11.5 | AI149: 11.5 | AJ149: 0 | AK149: 14 | AL149: 11 | AT149: 11
A150: 2024-08-22 | B150: 1 | C150: 63 | D150: 65 | F150: -1 | G150: 62 | H150: 66 | J150: -1 | K150: 73 | L150: 54 | N150: 1 | O150: 60 | P150: 67 | R150: 1 | S150: 63 | T150: 64 | W150: 70 | X150: 57 | AA150: -2 | AB150: -4 | AC150: 19 | AD150: -7 | AE150: -1 | AF150: 13 | AH150: 10.5 | AI150: 11.5 | AJ150: 0 | AK150: 13 | AL150: 10 | AT150: 10
A151: 2024-08-23 | B151: 1 | C151: 64 | D151: 65 | F151: -1 | G151: 62 | H151: 67 | J151: 1 | K151: 74 | L151: 54 | N151: 1 | O151: 61 | P151: 67 | R151: 1 | S151: 64 | T151: 64 | V151: 1 | W151: 71 | X151: 57 | AA151: -1 | AB151: -5 | AC151: 20 | AD151: -6 | AE151: 0 | AF151: 14 | AH151: 10.5 | AI151: 12.5 | AJ151: 0 | AK151: 13 | AL151: 10 | AT151: 10
A152: 2024-08-24 | B152: 1 | C152: 65 | D152: 65 | F152: 1 | G152: 63 | H152: 67 | J152: 1 | K152: 75 | L152: 54 | N152: -1 | O152: 61 | P152: 68 | R152: -1 | S152: 64 | T152: 65 | V152: 1 | W152: 72 | X152: 57 | AA152: 0 | AB152: -4 | AC152: 21 | AD152: -7 | AE152: -1 | AF152: 15 | AH152: 10.5 | AI152: 12.5 | AJ152: 0 | AK152: 14 | AL152: 11 | AT152: 10.5
A153: 2024-08-25 | B153: -1 | C153: 65 | D153: 66 | F153: -1 | G153: 63 | H153: 68 | J153: -1 | K153: 75 | L153: 55 | N153: 1 | O153: 62 | P153: 68 | R153: 1 | S153: 65 | T153: 65 | V153: 1 | W153: 73 | X153: 57 | AA153: -1 | AB153: -5 | AC153: 20 | AD153: -6 | AE153: 0 | AF153: 16 | AH153: 10.5 | AI153: 12.5 | AJ153: 0 | AK153: 13 | AL153: 10 | AT153: 10
A154: 2024-08-26 | B154: 1 | C154: 66 | D154: 66 | G154: 63 | H154: 68 | K154: 75 | L154: 55 | N154: -1 | O154: 62 | P154: 69 | R154: -1 | S154: 65 | T154: 66 | V154: 1 | W154: 74 | X154: 57 | AA154: 0 | AB154: -5 | AC154: 20 | AD154: -7 | AE154: -1 | AF154: 17 | AH154: 10 | AI154: 12.5 | AJ154: 0 | AK154: 13.5 | AL154: 10.5 | AT154: 10
A155: 2024-08-27 | B155: 1 | C155: 67 | D155: 66 | F155: -1 | G155: 63 | H155: 69 | J155: -1 | K155: 75 | L155: 56 | N155: -1 | O155: 62 | P155: 70 | R155: -1 | S155: 65 | T155: 67 | V155: -1 | W155: 74 | X155: 58 | AA155: 1 | AB155: -6 | AC155: 19 | AD155: -8 | AE155: -2 | AF155: 16 | AH155: 9 | AI155: 12.5 | AJ155: 0 | AK155: 13.5 | AL155: 10.5 | AT155: 9
A156: 2024-08-28 | B156: 1 | C156: 68 | D156: 66 | F156: -1 | G156: 63 | H156: 70 | J156: 1 | K156: 76 | L156: 56 | N156: -1 | O156: 62 | P156: 71 | R156: 1 | S156: 66 | T156: 67 | V156: -1 | W156: 74 | X156: 59 | AA156: 2 | AB156: -7 | AC156: 20 | AD156: -9 | AE156: -1 | AF156: 15 | AH156: 9 | AI156: 13.5 | AJ156: 0 | AK156: 14.5 | AL156: 10.5 | AT156: 9
A157: 2024-08-29 | C157: 68 | D157: 66 | F157: 1 | G157: 64 | H157: 70 | J157: 1 | K157: 77 | L157: 56 | O157: 62 | P157: 71 | R157: 1 | S157: 67 | T157: 67 | W157: 74 | X157: 59 | AA157: 2 | AB157: -6 | AC157: 21 | AD157: -9 | AE157: 0 | AF157: 15 | AH157: 9.5 | AI157: 13.5 | AJ157: 0 | AK157: 15 | AL157: 10.5 | AT157: 9.5
A158: 2024-08-30 | B158: 1 | C158: =C157+IF(B158>0,B158,0) -> 69 | D158: =D157-IF(B158<0,B158,0) -> 66 | F158: -2 | G158: =G157+IF(F158>0,F158,0) -> 64 | H158: =H157-IF(F158<0,F158,0) -> 72 | J158: 2 | K158: 79 | L158: 56 | N158: -1 | O158: 62 | P158: 72 | R158: -1 | S158: 67 | T158: 68 | V158: 1 | W158: 75 | X158: 59 | AA158: 3 | AB158: -8 | AC158: 23 | AD158: -10 | AE158: -1 | AF158: 16 | AH158: 10 | AI158: 15.5 | AJ158: 0 | AK158: 16.5 | AL158: 12 | AT158: 10
A159: 2024-08-31 | B159: 1 | C159: 70 | D159: 66 | F159: -1 | G159: 64 | H159: 73 | J159: 1 | K159: 80 | L159: 56 | N159: 1 | O159: 63 | P159: 72 | R159: 1 | S159: 68 | T159: 68 | V159: 1 | W159: 76 | X159: 59 | AA159: 4 | AB159: -9 | AC159: 24 | AD159: -9 | AE159: 0 | AF159: 17 | AH159: 10 | AI159: 16.5 | AJ159: 0 | AK159: 16.5 | AL159: 12 | AT159: 10
A160: 2024-09-01 | B160: 1 | C160: 71 | D160: 66 | F160: 1 | G160: 65 | H160: 73 | J160: -1 | K160: 80 | L160: 57 | N160: -1 | O160: 63 | P160: 73 | R160: 1 | S160: 69 | T160: 68 | V160: -1 | W160: 76 | X160: 60 | AA160: 5 | AB160: -8 | AC160: 23 | AD160: -10 | AE160: 1 | AF160: 16 | AH160: 9 | AI160: 15.5 | AJ160: 0 | AK160: 16.5 | AL160: 11 | AT160: 9
A161: 2024-09-02 | B161: -1 | C161: 71 | D161: 67 | F161: 1 | G161: 66 | H161: 73 | J161: 1 | K161: 81 | L161: 57 | N161: 1 | O161: 64 | P161: 73 | R161: -1 | S161: 69 | T161: 69 | V161: -1 | W161: 76 | X161: 61 | AA161: 4 | AB161: -7 | AC161: 24 | AD161: -9 | AE161: 0 | AF161: 15 | AH161: 10 | AI161: 15.5 | AJ161: 0 | AK161: 16.5 | AL161: 12 | AT161: 10
A162: 2024-09-03 | B162: -1 | C162: 71 | D162: 68 | F162: 1 | G162: 67 | H162: 73 | J162: -1 | K162: 81 | L162: 58 | N162: 1 | O162: =O161+IF(N162>0,N162,0) -> 65 | P162: =P161-IF(N162<0,N162,0) -> 73 | R162: 1 | S162: 70 | T162: 69 | V162: 1 | W162: 77 | X162: 61 | AA162: 3 | AB162: -6 | AC162: 23 | AD162: -8 | AE162: 1 | AF162: 16 | AH162: 10 | AI162: 14.5 | AJ162: 0 | AK162: 15.5 | AL162: 11 | AT162: =IF(AJ162 = 0, MIN(AH162:AI162, AK162:AL162), 0-AJ162) -> 10
A163: 2024-09-04 | B163: 1 | C163: 72 | D163: 68 | G163: 67 | H163: 73 | J163: -1 | K163: 81 | L163: 59 | N163: -1 | O163: 65 | P163: 74 | R163: 1 | S163: 71 | T163: 69 | V163: -1 | W163: 77 | X163: 62 | AA163: =C163-D163 -> 4 | AB163: =G163-H163 -> -6 | AC163: =K163-L163 -> 22 | AD163: =O163-P163 -> -9 | AE163: =S163-T163 -> 2 | AF163: =W163-X163 -> 15 | AH163: 9 | AI163: 14 | AJ163: 0 | AK163: 15.5 | AL163: 10 | AT163: 9
A164: 2024-09-05 | C164: 72 | D164: 68 | F164: 1 | G164: 68 | H164: 73 | K164: 81 | L164: 59 | N164: 1 | O164: 66 | P164: 74 | S164: 71 | T164: 69 | W164: 77 | X164: 62 | AA164: 4 | AB164: -5 | AC164: 22 | AD164: -8 | AE164: 2 | AF164: 15 | AH164: 9 | AI164: 13.5 | AJ164: 0 | AK164: 15 | AL164: =(MAX($AA164:$AE164)-AE164)/2 -> 10 | AT164: 9
A165: 2024-09-06 | B165: -1 | C165: 72 | D165: 69 | F165: -1 | G165: 68 | H165: 74 | J165: -1 | K165: =K164+IF(J165>0,J165,0) -> 81 | L165: =L164-IF(J165<0,J165,0) -> 60 | O165: 66 | P165: 74 | R165: -1 | S165: 71 | T165: 70 | V165: 1 | W165: 78 | X165: 62 | AA165: 3 | AB165: -6 | AC165: 21 | AD165: -8 | AE165: 1 | AF165: 16 | AH165: 9 | AI165: 13.5 | AJ165: 0 | AK165: 14.5 | AL165: 10 | AT165: 9
A166: 2024-09-07 | B166: -1 | C166: 72 | D166: 70 | F166: -1 | G166: 68 | H166: 75 | J166: 1 | K166: 82 | L166: 60 | N166: -2 | O166: 66 | P166: 76 | R166: 1 | S166: 72 | T166: 70 | V166: 1 | W166: 79 | X166: 62 | AA166: 2 | AB166: -7 | AC166: 22 | AD166: -10 | AE166: 2 | AF166: 17 | AH166: 10 | AI166: 14.5 | AJ166: 0 | AK166: 16 | AL166: 10 | AT166: 10
A167: 2024-09-08 | B167: 1 | C167: 73 | D167: 70 | F167: 1 | G167: 69 | H167: 75 | J167: -1 | K167: 82 | L167: 61 | N167: 1 | O167: 67 | P167: 76 | R167: -1 | S167: 72 | T167: 71 | V167: -1 | W167: 79 | X167: 63 | AA167: 3 | AB167: -6 | AC167: 21 | AD167: -9 | AE167: 1 | AF167: 16 | AH167: 9 | AI167: 13.5 | AJ167: 0 | AK167: 15 | AL167: 10 | AT167: 9
A168: 2024-09-09 | B168: 1 | C168: 74 | D168: 70 | F168: 1 | G168: 70 | H168: 75 | K168: 82 | L168: 61 | N168: 1 | O168: 68 | P168: 76 | S168: 72 | T168: 71 | V168: 1 | W168: 80 | X168: 63 | AA168: 4 | AB168: -5 | AC168: 21 | AD168: -8 | AE168: 1 | AF168: 17 | AH168: 8.5 | AI168: 13 | AJ168: 0 | AK168: 14.5 | AL168: 10 | AT168: 8.5
A169: 2024-09-10 | B169: 1 | C169: 75 | D169: 70 | F169: 1 | G169: 71 | H169: 75 | J169: 1 | K169: 83 | L169: 61 | N169: 1 | O169: 69 | P169: 76 | R169: -1 | S169: 72 | T169: 72 | V169: 1 | W169: 81 | X169: 63 | AA169: 5 | AB169: -4 | AC169: 22 | AD169: -7 | AE169: 0 | AF169: 18 | AH169: 8.5 | AI169: 13 | AJ169: 0 | AK169: 14.5 | AL169: 11 | AT169: 8.5
A170: 2024-09-11 | B170: -1 | C170: 75 | D170: 71 | F170: -1 | G170: 71 | H170: 76 | J170: -1 | K170: 83 | L170: 62 | N170: 1 | O170: 70 | P170: 76 | R170: 1 | S170: 73 | T170: 72 | V170: -1 | W170: 81 | X170: 64 | AA170: 4 | AB170: -5 | AC170: 21 | AD170: -6 | AE170: 1 | AF170: 17 | AH170: 8.5 | AI170: 13 | AJ170: 0 | AK170: 13.5 | AL170: 10 | AT170: 8.5
A171: 2024-09-12 | C171: 75 | D171: 71 | F171: -1 | G171: 71 | H171: 77 | J171: 1 | K171: 84 | L171: 62 | O171: 70 | P171: 76 | R171: 1 | S171: 74 | T171: 72 | V171: 1 | W171: 82 | X171: 64 | AA171: 4 | AB171: -6 | AC171: 22 | AD171: -6 | AE171: 2 | AF171: 18 | AH171: 9 | AI171: 14 | AJ171: 0 | AK171: 14 | AL171: 10 | AT171: 9
A172: 2024-09-13 | B172: -1 | C172: 75 | D172: 72 | F172: 1 | G172: 72 | H172: 77 | J172: 1 | K172: 85 | L172: 62 | N172: -1 | O172: 70 | P172: 77 | R172: -1 | S172: 74 | T172: 73 | V172: 1 | W172: 83 | X172: 64 | AA172: 3 | AB172: -5 | AC172: 23 | AD172: -7 | AE172: 1 | AF172: 19 | AH172: 10 | AI172: 14 | AJ172: 0 | AK172: 15 | AL172: 11 | AT172: 10
A173: 2024-09-14 | B173: -1 | C173: 75 | D173: 73 | F173: 1 | G173: 73 | H173: 77 | J173: 1 | K173: =K172+IF(J173>0,J173,0) -> 86 | L173: =L172-IF(J173<0,J173,0) -> 62 | N173: -1 | O173: 70 | P173: 78 | R173: -1 | S173: =S172+IF(R173>0,R173,0) -> 74 | T173: =T172-IF(R173<0,R173,0) -> 74 | V173: 1 | W173: 84 | X173: 64 | AA173: 2 | AB173: -4 | AC173: 24 | AD173: -8 | AE173: 0 | AF173: 20 | AH173: 11 | AI173: 14 | AJ173: 0 | AK173: 16 | AL173: 12 | AT173: 11
A174: 2024-09-15 | B174: 1 | C174: 76 | D174: 73 | F174: -1 | G174: 73 | H174: 78 | J174: -1 | K174: 86 | L174: 63 | N174: 1 | O174: 71 | P174: 78 | R174: -1 | S174: 74 | T174: 75 | V174: -1 | W174: 84 | X174: 65 | AA174: 3 | AB174: -5 | AC174: 23 | AD174: -7 | AE174: -1 | AF174: 19 | AH174: 10 | AI174: 14 | AJ174: 0 | AK174: 15 | AL174: 12 | AT174: 10
A175: 2024-09-16 | B175: 1 | C175: 77 | D175: 73 | G175: 73 | H175: 78 | J175: 1 | K175: =K174+IF(J175>0,J175,0) -> 87 | L175: =L174-IF(J175<0,J175,0) -> 63 | N175: -1 | O175: 71 | P175: 79 | R175: 1 | S175: 75 | T175: 75 | V175: -1 | W175: 84 | X175: 66 | AA175: 4 | AB175: -5 | AC175: 24 | AD175: -8 | AE175: 0 | AF175: 18 | AH175: 10 | AI175: 14.5 | AJ175: 0 | AK175: 16 | AL175: 12 | AT175: 10
A176: 2024-09-17 | B176: -1 | C176: 77 | D176: 74 | F176: 1 | G176: 74 | H176: 78 | J176: -1 | K176: 87 | L176: 64 | N176: -1 | O176: 71 | P176: 80 | R176: 1 | S176: 76 | T176: 75 | V176: 1 | W176: 85 | X176: 66 | AA176: 3 | AB176: -4 | AC176: 23 | AD176: -9 | AE176: 1 | AF176: 19 | AH176: 10 | AI176: 13.5 | AJ176: 0 | AK176: 16 | AL176: 11 | AT176: 10
A177: 2024-09-18 | B177: -1 | C177: 77 | D177: 75 | F177: -1 | G177: 74 | H177: 79 | J177: 1 | K177: 88 | L177: 64 | N177: -1 | O177: 71 | P177: 81 | R177: 1 | S177: 77 | T177: 75 | V177: 1 | W177: 86 | X177: 66 | AA177: 2 | AB177: -5 | AC177: 24 | AD177: -10 | AE177: 2 | AF177: 20 | AH177: 11 | AI177: 14.5 | AJ177: 0 | AK177: 17 | AL177: 11 | AT177: 11
A178: 2024-09-19 | B178: 1 | C178: 78 | D178: 75 | F178: -1 | G178: 74 | H178: 80 | J178: -1 | K178: 88 | L178: 65 | N178: 1 | O178: 72 | P178: 81 | R178: -1 | S178: 77 | T178: 76 | V178: 1 | W178: 87 | X178: 66 | AA178: 3 | AB178: -6 | AC178: 23 | AD178: -9 | AE178: 1 | AF178: 21 | AH178: 10 | AI178: 14.5 | AJ178: 0 | AK178: 16 | AL178: 11 | AT178: 10
A179: 2024-09-20 | B179: 1 | C179: 79 | D179: 75 | F179: 1 | G179: 75 | H179: 80 | J179: -1 | K179: 88 | L179: 66 | N179: -1 | O179: 72 | P179: 82 | R179: -1 | S179: 77 | T179: 77 | V179: 1 | W179: 88 | X179: 66 | AA179: 4 | AB179: -5 | AC179: 22 | AD179: -10 | AE179: 0 | AF179: 22 | AH179: 9 | AI179: 13.5 | AJ179: 0 | AK179: 16 | AL179: 11 | AT179: 9
A180: 2024-09-21 | B180: -1 | C180: 79 | D180: 76 | F180: 1 | G180: 76 | H180: 80 | J180: -1 | K180: 88 | L180: 67 | N180: -1 | O180: 72 | P180: 83 | R180: 1 | S180: 78 | T180: 77 | V180: -1 | W180: 88 | X180: 67 | AA180: 3 | AB180: -4 | AC180: 21 | AD180: -11 | AE180: 1 | AF180: 21 | AH180: 9 | AI180: 12.5 | AJ180: 0 | AK180: 16 | AL180: 10 | AP180: Team | AQ180: GB | AR180: % | AT180: 9
A181: 2024-09-22 | B181: 1 | C181: 80 | D181: 76 | F181: -1 | G181: 76 | H181: 81 | J181: 1 | K181: 89 | L181: 67 | N181: 1 | O181: 73 | P181: 83 | R181: 1 | S181: 79 | T181: 77 | V181: -1 | W181: 88 | X181: 68 | AA181: 4 | AB181: -5 | AC181: 22 | AD181: -10 | AE181: 2 | AF181: 20 | AH181: 9 | AI181: 13.5 | AJ181: 0 | AK181: 16 | AL181: 10 | AP181: =AJ$1 -> MIL | AQ181: =AJ$190 -> 0 | AR181: =AJ$192 -> 0.5740740741 | AT181: 9
A182: 2024-09-23 | B182: -1 | C182: 80 | D182: 77 | G182: 76 | H182: 81 | K182: 89 | L182: 67 | O182: 73 | P182: 83 | S182: 79 | T182: 77 | W182: 88 | X182: 68 | AA182: 3 | AB182: -5 | AC182: 22 | AD182: -10 | AE182: 2 | AF182: 20 | AH182: 9.5 | AI182: 13.5 | AJ182: 0 | AK182: 16 | AL182: 10 | AP182: =AH$1 -> CHC | AQ182: =AH$190 -> 10 | AR182: =AH$192 -> 0.512345679 | AT182: 9.5
A183: 2024-09-24 | B183: 1 | C183: 81 | D183: 77 | F183: -1 | G183: 76 | H183: 82 | J183: 1 | K183: 90 | L183: 67 | N183: -1 | O183: 73 | P183: 84 | R183: 1 | S183: 80 | T183: 77 | V183: -1 | W183: 88 | X183: 69 | AA183: 4 | AB183: -6 | AC183: 23 | AD183: -11 | AE183: 3 | AF183: 19 | AH183: 9.5 | AI183: 14.5 | AJ183: 0 | AK183: 17 | AL183: 10 | AP183: =AL$1 -> STL | AQ183: =AL$190 -> 10 | AR183: =AL$192 -> 0.512345679 | AT183: 9.5
A184: 2024-09-25 | B184: -1 | C184: 81 | D184: 78 | F184: -1 | G184: 76 | H184: 83 | J184: -1 | K184: =K183+IF(J184>0,J184,0) -> 90 | L184: =L183-IF(J184<0,J184,0) -> 68 | N184: 1 | O184: 74 | P184: 84 | R184: 1 | S184: 81 | T184: 77 | V184: 1 | W184: 89 | X184: 69 | AA184: 3 | AB184: -7 | AC184: 22 | AD184: -10 | AE184: 4 | AF184: 20 | AH184: 9.5 | AI184: 14.5 | AJ184: 0 | AK184: 16 | AL184: 9 | AP184: =AI$1 -> CIN | AQ184: =AI$190 -> 16 | AR184: =AI$192 -> 0.475308642 | AT184: 9
A185: 2024-09-26 | C185: 81 | D185: 78 | G185: 76 | H185: 83 | J185: 1 | K185: 91 | L185: 68 | N185: -1 | O185: 74 | P185: 85 | R185: -1 | S185: 81 | T185: 78 | V185: 1 | W185: 90 | X185: 69 | AA185: 3 | AB185: -7 | AC185: 23 | AD185: -11 | AE185: 3 | AF185: 21 | AH185: 10 | AI185: 15 | AJ185: 0 | AK185: 17 | AL185: 10 | AP185: =AK$1 -> PIT | AQ185: =AK$190 -> 17 | AR185: =AK$192 -> 0.4691358025 | AT185: 10
A186: 2024-09-27 | B186: 1 | C186: 82 | D186: 78 | F186: -1 | G186: 76 | H186: 84 | J186: 1 | K186: =K185+IF(J186>0,J186,0) -> 92 | L186: =L185-IF(J186<0,J186,0) -> 68 | N186: 1 | O186: 75 | P186: 85 | R186: 1 | S186: 82 | T186: 78 | V186: 1 | W186: 91 | X186: 69 | AA186: =C186-D186 -> 4 | AB186: =G186-H186 -> -8 | AC186: =K186-L186 -> 24 | AD186: =O186-P186 -> -10 | AE186: =S186-T186 -> 4 | AF186: =W186-X186 -> 22 | AH186: =(MAX($AA186:$AE186)-AA186)/2 -> 10 | AI186: =(MAX($AA186:$AE186)-AB186)/2 -> 16 | AJ186: =(MAX($AA186:$AE186)-AC186)/2 -> 0 | AK186: =(MAX($AA186:$AE186)-AD186)/2 -> 17 | AL186: =(MAX($AA186:$AE186)-AE186)/2 -> 10 | AT186: 10
A187: 2024-09-28 | B187: 1 | C187: 83 | D187: 78 | F187: -1 | G187: 76 | H187: 85 | J187: 1 | K187: 93 | L187: 68 | N187: 1 | O187: 76 | P187: 85 | R187: -1 | S187: 82 | T187: 79 | V187: -1 | W187: 91 | X187: 70 | AA187: 5 | AB187: -9 | AC187: 25 | AD187: -9 | AE187: 3 | AF187: 21 | AH187: 10 | AI187: 17 | AJ187: 0 | AK187: 17 | AL187: 11 | AT187: 10
A188: 2024-09-29 | B188: -1 | C188: 83 | D188: 79 | F188: 1 | G188: 77 | H188: 85 | J188: -1 | K188: =K187+IF(J188>0,J188,0) -> 93 | L188: =L187-IF(J188<0,J188,0) -> 69 | N188: -1 | O188: 76 | P188: 86 | R188: 1 | S188: 83 | T188: 79 | V188: 1 | W188: 92 | X188: 70 | AA188: =C188-D188 -> 4 | AB188: =G188-H188 -> -8 | AC188: =K188-L188 -> 24 | AD188: =O188-P188 -> -10 | AE188: =S188-T188 -> 4 | AF188: =W188-X188 -> 22 | AH188: =(MAX($AA188:$AE188)-AA188)/2 -> 10 | AI188: =(MAX($AA188:$AE188)-AB188)/2 -> 16 | AJ188: =(MAX($AA188:$AE188)-AC188)/2 -> 0 | AK188: =(MAX($AA188:$AE188)-AD188)/2 -> 17 | AL188: =(MAX($AA188:$AE188)-AE188)/2 -> 10 | AT188: =IF(AJ188 = 0, MIN(AH188:AI188, AK188:AL188), 0-AJ188) -> 10
A189: 2024-09-30 | C189: 83 | D189: 79 | G189: 77 | H189: 85 | K189: 93 | L189: 69 | O189: 76 | P189: 86 | S189: 83 | T189: 79 | W189: 92 | X189: 70 | AA189: 4 | AB189: -8 | AC189: 24 | AD189: -10 | AE189: 4 | AF189: 22 | AH189: 10 | AI189: 16 | AJ189: 0 | AK189: 17 | AL189: 10 | AT189: 10
A190: 2024-10-01 | C190: 83 | D190: 79 | G190: 77 | H190: 85 | K190: 93 | L190: 69 | O190: 76 | P190: 86 | S190: 83 | T190: 79 | W190: 92 | X190: 70 | AA190: 4 | AB190: -8 | AC190: 24 | AD190: -10 | AE190: 4 | AF190: 22 | AH190: 10 | AI190: 16 | AJ190: 0 | AK190: 17 | AL190: 10 | AT190: 10
AH192: =C190/(C190+D190) -> 0.512345679 | AI192: =G190/(G190+H190) -> 0.475308642 | AJ192: =K190/(K190+L190) -> 0.5740740741 | AK192: =O190/(O190+P190) -> 0.4691358025 | AL192: =S190/(S190+T190) -> 0.512345679
